Workbook

Sheet Intro
B1: ELIGIBILITY CRITERIA and WAITING TIMES - Data Tables
B3: Data available
B5: Table A | D5: Presents the number of new clients and the rate per 1,000 population for clients recorded as being new to social work services (as defined below) who received a community care assessment in the quarter.
B6: Table B | D6: Presents the number of new Personal Care (PC) clients and the rate per 1,000 population for clients recorded as receiving a new service (as defined below) within the quarter.
B7: Table C | D7: Presents data on the time intervals recorded for clients by Eligibility Category between first contact and completion of assessment and between completion of assessment and service delivery.
B8: Table D | D8: Presents individual Local Authority data on the time intervals recorded for clients between first contact and completion of assessment and between completion of assessment and service delivery by Eligibility Category.
B10: Notes
B12: 1 - | C12: Not all Local Authorities have been able to return data for this collection. Authorities without data have had their figures denoted as "NR" (Not Returned) in the data tables.
B13: 2 - | C13: Data is collected on the reason for delays of over six weeks for the delivery of service, the main reasons provided include:
C14: - | D14: Waiting for a vacancy in a care home of family choice, or for appropriate care at home services
C15: - | D15: Admission / re-admission into hospital
C16: - | D16: Waiting for financial paperwork or delays caused by legal issues
B17: 3 - | C17: Population data sourced from NRS mid-year estimates up to June 2017, which is the latest available.
C18: http://www.nrscotland.gov.uk/statistics-and-data/statistics/statistics-by-theme/population/population-estimates/
B20: Information on data requested within the quarterly return
B22: Table 1 counts NEW CLIENTS, by age band, of the numbers of older people in each of the eligibility categories following a completed COMMUNITY CARE ASSESSMENT.
B24: Table 2 looks at the time interval from FIRST CONTACT to completion of a COMMUNITY CARE ASSESSMENT separately for each of the eligibility categories, for NEW CLIENTS recorded in Table 1. There is no national target for assessment waiting times: CoSLA and the Scottish Government will keep under review information from councils on the actual timescales between first referral and confirmation of need and consider what appropriate standard or standards might be applied in future. The data gathered in Table 2 will provide insight into the variation across Scotland and will inform any future decisions on a possible national standard.
D26: A NEW CLIENT is someone who was not receiving services provided or arranged by local authority adult social care services at the time of the contact or referral that triggered the assessment. This does not mean that the person has never been assessed previously or received services in the past. People who receive information or advice or a basic service as a result of screening but without further assessment are excluded from this definition.
D28: A COMMUNITY CARE ASSESSMENT is defined as a series of actions, undertaken jointly as far as possible with the person being assessed, which includes identifying the extent and nature of their needs, and the key outcomes they would like to achieve, the extent to which these may be enabled or met by community care services or support, informing the person and/or carer of the conclusion, and, where appropriate, devising a care plan and arranging services
D30: “FIRST CONTACT” is the date on which the potential need for an assessment of social care needs was first notified to the council, by or on behalf of the client. (Note: there is currently no National Minimum Information Standard for this data item). For the sake of clarity, the assessment at issue is the one whose end date was used to select the client, or the one associated with the care plan date used to select the client.
B32: Table 3 provides the distribution of time intervals from completion of a community care assessment to DELIVERY OF SERVICE, separately for people in each of the eligibility categories. Information in this table will be used to monitor the new 6 week waiting time target to Personal Care for older people aged 65+ who have been assessed in the critical or substantial needs categories. Table 3 counts clients aged 65+ with a relevant personal care service start date in the reporting period. These clients don't need to be NEW to Social Care services and may already have another service, such as telecare or meals service. Therefore Table 3 does not count the same cohort of people as Tables 1 and 2.
D34: The relevant personal and nursing care services required for Table 3 are restricted to:
D35: - personal care at home, or
D36: - personal and nursing care in a care home, or
D37: - a Direct Payment / Self Directed Support provided for personal care needs.
D39: Personal care at home includes intermediate care (e.g. rapid response, crisis care) but, for the purposes of this measure, excludes:
D40: - telecare,
D41: - equipment and adaptations, and
D42: - nursing services provided by the NHS.
D44: “DELIVERY OF SERVICE” means the date by which the services set out in the agreed Care and Support Plan are being delivered to the client. The Delivery of Service date is therefore the first date after confirmation of need on which either personal care at home, or personal and nursing care in a care home, or a Direct Payment/ Self Directed Support provided for personal care needs, commences.
B46: Full definitions are available with the quarterly return template | I46: http://www.scotland.gov.uk/Topics/Statistics/Browse/Health/QuarterlySurvey
B48: Contact
B50: If you have any questions or queries please send an e-mail, to the address below.
B51: E-mail: | D51: SWStat@gov.scot

Sheet TablesA&B - Client numbers
B1: Table A - NEW Clients receiving a community care assessment in the quarter, January to March 2012 - 2018
A3: 2011
D4: January to March 2012 | F4: January to March 2013 | H4: January to March 2014 | J4: January to March 2015 | L4: January to March 2016 | N4: January to March 2017 | P4: January to March 2018
A5: Totals | C5: Local Authority | D5: Number of new clients | E5: Rate per 1,000 population | F5: Number of new clients | G5: Rate per 1,000 population | H5: Number of new clients | I5: Rate per 1,000 population | J5: Number of new clients | K5: Rate per 1,000 population | L5: Number of new clients | M5: Rate per 1,000 population | N5: Number of new clients | O5: Rate per 1,000 population | P5: Number of new clients | Q5: Rate per 1,000 population
A6: JantoMar11 | C6: Aberdeen City | D6: 136 | E6: 3.984764137 | F6: 151 | G6: 4.478984368 | H6: 49 | I6: 1.453574607 | J6: 68 | K6: 1.984706088 | L6: 42 | M6: 1.220008133 | N6: 56 | O6: 1.661228122 | P6: 56 | Q6: 1.586761872
A7: AprtoJun11 | C7: Aberdeenshire | D7: 250 | E7: 5.590965001 | F7: 271 | G7: 6.106354214 | H7: 199 | I7: 4.483698713 | J7: 210 | K7: 4.586154182 | L7: 378 | M7: 8.092312303 | N7: 322 | O7: 7.255030079 | P7: NR
A8: JultoSep11 | C8: Angus | D8: 183 | E8: 7.309474357 | F8: 106 | G8: 4.246794872 | H8: 224 | I8: 8.968609865 | J8: 77 | K8: 3.002534607 | L8: 97 | M8: 3.719753039 | N8: 122 | O8: 4.884689302 | P8: 59 | Q8: 2.201081888
A9: Clients numbers Q1 & Q2 | C9: Argyll & Bute | D9: 99 | E9: 4.770394642 | F9: 265 | G9: 12.85160039 | H9: 199 | I9: 9.645678833 | J9: 173 | K9: 8.192839553 | L9: 113 | M9: 5.299193397 | N9: 125 | O9: 6.058843488 | P9: 240 | Q9: 10.99052068
A10: 8 | C10: Clackmannanshire | D10: 89 | E10: 9.723587895 | F10: 88 | G10: 9.757179288 | H10: 83 | I10: 9.200753797 | J10: 87 | K10: 9.326758148 | L10: 86 | M10: 8.890726765 | N10: 111 | O10: 12.30462255 | P10: 110 | Q10: 10.94527363
A11: OcttoDec11 | C11: Dumfries and Galloway | D11: 171 | E11: 4.830099144 | F11: 179 | G11: 5.109905795 | H11: 186 | I11: 5.307310392 | J11: 330 | K11: 9.221740953 | L11: 311 | M11: 8.557827247 | N11: 227 | O11: 6.477201392 | P11: 402 | Q11: 10.74607715
C12: Dundee City | D12: 314 | E12: 12.16064444 | F12: 402 | G12: 15.80002358 | H12: 342 | I12: 13.44233944 | J12: 350 | K12: 13.57009926 | L12: 320 | M12: 12.37528038 | N12: 406 | O12: 15.95786495 | P12: NR
C13: East Ayrshire | D13: 113 | E13: 4.889446584 | F13: 230 | G13: 10.0890468 | H13: 293 | I13: 12.85087719 | J13: 269 | K13: 11.5913302 | L13: 283 | M13: 12.03691889 | N13: 375 | O13: 16.44736842 | P13: NR
A14: 0 | C14: East Dunbartonshire | D14: 237 | E14: 10.73953235 | F14: 235 | G14: 10.67987639 | H14: 212 | I14: 9.641622703 | J14: 248 | K14: 10.96908311 | L14: 222 | M14: 9.647140622 | N14: 215 | O14: 9.77806076 | P14: 160 | Q14: 6.751909524
C15: East Lothian | D15: 202 | E15: 10.53070587 | F15: 206 | G15: 10.78534031 | H15: 159 | I15: 8.321993091 | J15: 131 | K15: 6.71657096 | L15: 146 | M15: 7.323802358 | N15: 164 | O15: 8.583690987 | P15: 144 | Q15: 6.904487917
C16: East Renfrewshire | D16: 126 | E16: 7.298847246 | F16: 115 | G16: 6.661260426 | H16: 145 | I16: 8.399467068 | J16: NR | L16: NR | N16: NR | P16: NR
C17: Edinburgh, City of | D17: 1131 | E17: 15.65939772 | F17: 1322 | G17: 18.30112409 | H17: 1158 | I17: 16.03700421 | J17: 1031 | K17: 13.9735979 | L17: 920 | M17: 12.29486289 | N17: 618 | O17: 8.558608464 | P17: 958 | Q17: 12.43058079
C18: Eilean Siar | D18: NR | F18: 29 | G18: 4.628151931 | H18: 17 | I18: 2.711323764 | J18: 35 | K18: 5.425515424 | L18: 13 | M18: 1.981405274 | N18: 9 | O18: 1.435406699 | P18: 32 | Q18: 4.736530491
C19: Falkirk | D19: 149 | E19: 5.420152783 | F19: 252 | G19: 9.266750018 | H19: NR | J19: NR | L19: NR | N19: 274 | O19: 10.07871699 | P19: 291 | Q19: 9.854385371
C20: Fife | D20: 990 | E20: 14.22107304 | F20: 732 | G20: 10.60623624 | H20: 720 | I20: 10.43221235 | J20: 734 | K20: 10.32682865 | L20: 1002 | M20: 13.84704679 | N20: 1332 | O20: 19.29959285 | P20: 1294 | Q20: 17.34770485
C21: Glasgow City | D21: 1448 | E21: 17.05636374 | F21: 1157 | G21: 13.90775444 | H21: 1254 | I21: 15.07265887 | J21: 1439 | K21: 17.22404424 | L21: 1501 | M21: 17.97540208 | N21: 1431 | O21: 17.20013943 | P21: 1364 | Q21: 16.24350974
C22: Highland | D22: 269 | E22: 5.746758102 | F22: 246 | G22: 5.285662104 | H22: 320 | I22: 6.874328679 | J22: 264 | K22: 5.495992505 | L22: 181 | M22: 3.688081994 | N22: 44 | O22: 0.9452201933 | P22: 28 | Q22: 0.5486000901
C23: Inverclyde | D23: 68 | E23: 4.349772916 | F23: 79 | G23: 5.119896306 | H23: 36 | I23: 2.33417623 | J23: 70 | K23: 4.461156077 | L23: 65 | M23: 4.090365616 | N23: 66 | O23: 4.279323089 | P23: 71 | Q23: 4.360375852
C24: Midlothian | D24: 174 | E24: 11.3532559 | F24: 131 | G24: 8.652575958 | H24: 132 | I24: 8.716898897 | J24: 130 | K24: 8.332265094 | L24: 173 | M24: 10.81587996 | N24: 147 | O24: 9.70745559 | P24: 107 | Q24: 6.412561429
C25: Moray | D25: 125 | E25: 6.736002587 | F25: 84 | G25: 4.545208593 | H25: 67 | I25: 3.623972306 | J25: 53 | K25: 2.788299663 | L25: NR | N25: 123 | O25: 6.652964085 | P25: 107 | Q25: 5.335593896
C26: North Ayrshire | D26: 96 | E26: 3.41588386 | F26: 38 | G26: 1.366267573 | H26: 133 | I26: 4.780905137 | J26: 59 | K26: 2.070393375 | L26: 51 | M26: 1.770034359 | N26: 44 | O26: 1.581652827 | P26: NR
C27: North Lanarkshire | D27: 681 | E27: 12.42723407 | F27: 659 | G27: 12.31476464 | H27: 654 | I27: 12.22475607 | J27: 827 | K27: 15.09564836 | L27: NR | N27: 782 | O27: 14.61736887 | P27: 721 | Q27: 12.59278666
C28: Orkney Islands | D28: NR | F28: NR | H28: NR | J28: NR | L28: NR | N28: NR | P28: NR
C29: Perth & Kinross | D29: 286 | E29: 8.999370673 | F29: 241 | G29: 7.594138963 | H29: 266 | I29: 8.382176845 | J29: 299 | K29: 9.195472998 | L29: 353 | M29: 10.61462593 | N29: 330 | O29: 10.3989412 | P29: 296 | Q29: 8.575981457
C30: Renfrewshire | D30: 231 | E30: 7.326355852 | F30: 172 | G30: 5.535352235 | H30: 289 | I30: 9.300080451 | J30: 278 | K30: 8.753148615 | L30: 288 | M30: 8.966934429 | N30: 283 | O30: 9.106999195 | P30: 243 | Q30: 7.375257982
C31: Scottish Borders | D31: 322 | E31: 12.48594362 | F31: 326 | G31: 12.68383783 | H31: 272 | I31: 10.57830669 | J31: 256 | K31: 9.722749715 | L31: NR | N31: 191 | O31: 7.428149185 | P31: 262 | Q31: 9.458825228
C32: Shetland Islands | D32: 51 | E32: 12.36363636 | F32: 57 | G32: 13.89227395 | H32: 42 | I32: 10.22644266 | J32: 52 | K32: 12.27283455 | L32: 65 | M32: 15.02195517 | N32: 71 | O32: 17.28755783 | P32: 81 | Q32: 18.07228916
C33: South Ayrshire | D33: 193 | E33: 7.465573263 | F33: 147 | G33: 5.692379182 | H33: 129 | I33: 4.994772912 | J33: NR | L33: NR | N33: NR | P33: NR
C34: South Lanarkshire | D34: NR | F34: NR | H34: NR | J34: NR | L34: NR | N34: NR | P34: NR
C35: Stirling | D35: 200 | E35: 11.92179304 | F35: 163 | G35: 9.829936075 | H35: 258 | I35: 15.55434979 | J35: 289 | K35: 17.10666509 | L35: 295 | M35: 17.20818993 | N35: 248 | O35: 14.95146802 | P35: 263 | Q35: 14.82776118
C36: West Dunbartonshire | D36: 395 | E36: 24.90699287 | F36: 162 | G36: 10.44083527 | H36: 403 | I36: 25.97486304 | J36: 358 | K36: 22.73737695 | L36: 349 | M36: 21.95797156 | N36: 442 | O36: 28.48855946 | P36: 273 | Q36: 16.71872129
C37: West Lothian | D37: 167 | E37: 6.280792809 | F37: 109 | G37: 4.15602242 | H37: 135 | I37: 5.145993749 | J37: 69 | K37: 2.541623692 | L37: 136 | M37: 4.879974165 | N37: 188 | O37: 7.166272776 | P37: 162 | Q37: 5.544527346
C38: SCOTLAND | D38: 8896 | E38: 10.01364269 | F38: 8354 | G38: 9.429819858 | H38: 8376 | I38: 9.753473278 | J38: 8186 | K38: 10.03578605 | L38: 7390 | M38: 10.29273714 | N38: 8746 | O38: 10.37648882 | P38: 7326 | Q38: 7.23507679
C39: Source: Scottish Government Quarterly Monitoring Return
C40: Note Scotland population rate is based on populations from LA's returning data (NRS mid-year population estimates up to 2017)
C41: NR - No figures returned for quarter
B43: Table B - New personal care clients receiving a new service in the quarter, January to March 2012 - 2018
D46: January to March 2012 | F46: January to March 2013 | H46: January to March 2014 | J46: January to March 2015 | L46: January to March 2016 | N46: January to March 2017 | P46: January to March 2018
C47: Local Authority | D47: Number of new clients | E47: Rate per 1,000 population | F47: Number of new clients | G47: Rate per 1,000 population | H47: Number of new clients | I47: Rate per 1,000 population | J47: Number of new clients | K47: Rate per 1,000 population | L47: Number of new clients | M47: Rate per 1,000 population | N47: Number of new clients | O47: Rate per 1,000 population | P47: Number of new clients | Q47: Rate per 1,000 population
C48: Aberdeen City | D48: 71 | E48: 2.080281277 | F48: 40 | G48: 1.186485925 | H48: 20 | I48: 0.5932957579 | J48: 18 | K48: 0.5253633763 | L48: 8 | M48: 0.2323825016 | N48: 12 | O48: 0.3559774548 | P48: 22 | Q48: 0.6233707356
C49: Aberdeenshire | D49: NR | F49: NR | H49: NR | J49: NR | L49: 126 | M49: 2.697437434 | N49: 89 | O49: 2.005272289 | P49: NR
C50: Angus | D50: 234 | E50: 9.346540981 | F50: 228 | G50: 9.134615385 | H50: 185 | I50: 7.407110826 | J50: 152 | K50: 5.927081302 | L50: 97 | M50: 3.719753039 | N50: 86 | O50: 3.443305573 | P50: 87 | Q50: 3.245663123
C51: Argyll & Bute | D51: 109 | E51: 5.252252686 | F51: 89 | G51: 4.316197866 | H51: 104 | I51: 5.040957782 | J51: 110 | K51: 5.209319947 | L51: 85 | M51: 3.986118927 | N51: 133 | O51: 6.446609471 | P51: 147 | Q51: 6.731693914
C52: Clackmannanshire | D52: 96 | E52: 10.48836447 | F52: 129 | G52: 14.30313782 | H52: 89 | I52: 9.865868529 | J52: 87 | K52: 9.326758148 | L52: 92 | M52: 9.511010028 | N52: 108 | O52: 11.97206518 | P52: 92 | Q52: 9.154228856
C53: Dumfries and Galloway | D53: 162 | E53: 4.5758834 | F53: 109 | G53: 3.111618613 | H53: 154 | I53: 4.394224733 | J53: 165 | K53: 4.610870476 | L53: 209 | M53: 5.751080047 | N53: 331 | O53: 9.444729784 | P53: 381 | Q53: 10.18471491
C54: Dundee City | D54: NR | F54: 125 | G54: 4.912942656 | H54: 52 | I54: 2.043864476 | J54: 58 | K54: 2.248759305 | L54: 71 | M54: 2.745765334 | N54: 105 | O54: 4.127034038 | P54: NR
C55: East Ayrshire | D55: 138 | E55: 5.971182554 | F55: 156 | G55: 6.843005659 | H55: 222 | I55: 9.736842105 | J55: 261 | K55: 11.24660663 | L55: 318 | M55: 13.52558377 | N55: 300 | O55: 13.15789474 | P55: NR
C56: East Dunbartonshire | D56: 266 | E56: 12.05365235 | F56: 241 | G56: 10.95255408 | H56: 171 | I56: 7.776969256 | J56: 227 | K56: 10.04024946 | L56: 224 | M56: 9.734051799 | N56: 200 | O56: 9.095870475 | P56: 131 | Q56: 5.528125923
C57: East Lothian | D57: 139 | E57: 7.246376812 | F57: 117 | G57: 6.12565445 | H57: 89 | I57: 4.658222548 | J57: 103 | K57: 5.280968007 | L57: 97 | M57: 4.865813895 | N57: 95 | O57: 4.972260023 | P57: 101 | Q57: 4.842731109
C58: East Renfrewshire | D58: 126 | E58: 7.298847246 | F58: 115 | G58: 6.661260426 | H58: 145 | I58: 8.399467068 | J58: NR | L58: NR | N58: NR | P58: NR
C59: Edinburgh, City of | D59: 525 | E59: 7.268951194 | F59: 545 | G59: 7.544714547 | H59: 485 | I59: 6.71670729 | J59: 561 | K59: 7.603480524 | L59: 625 | M59: 8.352488373 | N59: 619 | O59: 8.572457345 | P59: 571 | Q59: 7.409041366
C60: Eilean Siar | D60: NR | F60: 29 | G60: 4.628151931 | H60: 17 | I60: 2.711323764 | J60: 30 | K60: 4.650441792 | L60: 12 | M60: 1.828989483 | N60: 9 | O60: 1.435406699 | P60: 30 | Q60: 4.440497336
C61: Falkirk | D61: 252 | E61: 9.166969807 | F61: 263 | G61: 9.671251011 | H61: NR | J61: NR | L61: NR | N61: 261 | O61: 9.600529684 | P61: 194 | Q61: 6.569590247
C62: Fife | D62: 230 | E62: 3.303885657 | F62: 404 | G62: 5.853715081 | H62: 347 | I62: 5.027746787 | J62: 384 | K62: 5.402591556 | L62: 415 | M62: 5.73505431 | N62: 455 | O62: 6.59257864 | P62: 496 | Q62: 6.64950665
C63: Glasgow City | D63: 494 | E63: 5.818952824 | F63: 690 | G63: 8.294166436 | H63: 695 | I63: 8.353666599 | J63: 762 | K63: 9.120723913 | L63: 701 | M63: 8.394907967 | N63: 796 | O63: 9.56765268 | P63: 940 | Q63: 11.19420759
C64: Highland | D64: NR | F64: NR | H64: NR | J64: NR | L64: NR | N64: NR | P64: NR
C65: Inverclyde | D65: 70 | E65: 4.477707414 | F65: 111 | G65: 7.193778354 | H65: 58 | I65: 3.76061726 | J65: 68 | K65: 4.333694475 | L65: 118 | M65: 7.42558681 | N65: 117 | O65: 7.586072748 | P65: 103 | Q65: 6.325615673
C66: Midlothian | D66: NR | F66: NR | H66: NR | J66: NR | L66: NR | N66: 99 | O66: 6.537674173 | P66: 43 | Q66: 2.577010668
C67: Moray | D67: 103 | E67: 5.550466131 | F67: 82 | G67: 4.43698934 | H67: 92 | I67: 4.976200779 | J67: 130 | K67: 6.839225589 | L67: NR | N67: 139 | O67: 7.518390307 | P67: 131 | Q67: 6.532362621
C68: North Ayrshire | D68: 33 | E68: 1.174210077 | F68: 57 | G68: 2.049401359 | H68: NR | J68: NR | L68: NR | N68: NR | P68: NR
C69: North Lanarkshire | D69: 383 | E69: 6.989178635 | F69: 410 | G69: 7.661689683 | H69: 401 | I69: 7.495607312 | J69: 502 | K69: 9.163259346 | L69: NR | N69: 498 | O69: 9.308759206 | P69: 560 | Q69: 9.78080517
C70: Orkney Islands | D70: NR | F70: NR | H70: NR | J70: NR | L70: NR | N70: NR | P70: NR
C71: Perth & Kinross | D71: 19 | E71: 0.5978602895 | F71: 41 | G71: 1.291948952 | H71: 508 | I71: 16.00806706 | J71: 487 | K71: 14.97724197 | L71: 638 | M71: 19.18450806 | N71: 804 | O71: 25.33560219 | P71: 1048 | Q71: 30.36361002
C72: Renfrewshire | D72: 131 | E72: 4.154773232 | F72: 140 | G72: 4.505519261 | H72: 312 | I72: 10.04022526 | J72: 365 | K72: 11.49244332 | L72: 309 | M72: 9.620773398 | N72: 327 | O72: 10.5229284 | P72: 374 | Q72: 11.3512201
C73: Scottish Borders | D73: 82 | E73: 3.179650238 | F73: 80 | G73: 3.112598241 | H73: 52 | I73: 2.022323338 | J73: 43 | K73: 1.633118116 | L73: NR | N73: 87 | O73: 3.383502508 | P73: 143 | Q73: 5.162641251
C74: Shetland Islands | D74: 30 | E74: 7.272727273 | F74: 21 | G74: 5.118206191 | H74: 32 | I74: 7.791575359 | J74: 37 | K74: 8.732593816 | L74: 27 | M74: 6.239889069 | N74: 24 | O74: 5.843681519 | P74: 29 | Q74: 6.470325747
C75: South Ayrshire | D75: 106 | E75: 4.100263036 | F75: 106 | G75: 4.104708798 | H75: 121 | I75: 4.685019553 | J75: NR | L75: NR | N75: NR | P75: NR
C76: South Lanarkshire | D76: NR | F76: NR | H76: NR | J76: NR | L76: NR | N76: NR | P76: NR
C77: Stirling | D77: 137 | E77: 8.166428231 | F77: 69 | G77: 4.161138584 | H77: 95 | I77: 5.727376861 | J77: 93 | K77: 5.504912987 | L77: 80 | M77: 4.666627778 | N77: 90 | O77: 5.425935974 | P77: 106 | Q77: 5.976207927
C78: West Dunbartonshire | D78: 179 | E78: 11.28696639 | F78: 140 | G78: 9.022944058 | H78: 117 | I78: 7.541089268 | J78: NR | L78: NR | N78: 207 | O78: 13.34192717 | P78: 214 | Q78: 13.10551779
C79: West Lothian | D79: 162 | E79: 6.09274512 | F79: 63 | G79: 2.402104701 | H79: 49 | I79: 1.867805138 | J79: 67 | K79: 2.46795344 | L79: 188 | M79: 6.74584664 | N79: 163 | O79: 6.21331097 | P79: 122 | Q79: 4.175508248
C80: SCOTLAND | D80: 4277 | E80: 5.659525987 | F80: 4600 | G80: 5.89855511 | H80: 4612 | I80: 6.362467512 | J80: 4710 | K80: 7.069195568 | L80: 4440 | M80: 7.243598633 | N80: 6154 | O80: 8.007828257 | P80: =SUM(P48:P79) -> 6065 | Q80: 5.9897271
C81: Source: Scottish Government Quarterly Monitoring Return
C82: Note Scotland population rate is based on populations from LA's returning data (NRS mid-year population estimates up to 2017)
C83: NR - No figures returned for quarter

Sheet TableC - Time interval (LA)
B1: ="Table C - Time intervals recorded for clients " &A12& " between first contact and completion of assessment and between completion of assessment and service delivery. Quarter - "&A9 -> Table C - Time intervals recorded for clients in ALL Eligibility Categories between first contact and completion of assessment and between completion of assessment and service delivery. Quarter - January to March 2018
A3: Year
A4: 2011 | C4: Select Quarter | F4: Select Eligibility Category
M5: =OFFSET(LKPS!B2,A6,0) -> January to March 2018
A6: 7
A7: =OFFSET(LKPS!D2,A6,0) -> JantoMar18
A8: =OFFSET(LKPS!B3,A6,0) -> 0 | D8: 5 | E8: 6 | F8: 7 | G8: 8 | H8: 9 | I8: 10 | K8: 11 | L8: 12 | M8: 13 | N8: 14 | O8: 15 | P8: 16
A9: =OFFSET(LKPS!B2,A6,0) -> January to March 2018 | D9: Time interval between first contact and completion of assessment | K9: Time interval between completion of assessment and service delivery
A10: 6 | C10: Local Authority | D10: Less than or equal to 2 days | E10: More than 2 days and <= 2 weeks | F10: More than 2 weeks and <= 4 weeks | G10: More than 4 weeks and <= 6 weeks | H10: More than 6 weeks | I10: Total | K10: Before care assessment completed | L10: Less than or equal to 2 weeks | M10: More than 2 weeks and <= 4 weeks | N10: More than 4 weeks and <= 6 weeks | O10: More than 6 weeks | P10: Total
A11: =OFFSET(LKPS!F2,A10,0) -> Totals | C11: Aberdeen City | D11: =IF($J11="NR","NR",(VLOOKUP($A$7&$C11&$A$11,Data!$A:$P,D$8,FALSE))) -> 0.43 | E11: =IF($J11="NR","NR",(VLOOKUP($A$7&$C11&$A$11,Data!$A:$P,E$8,FALSE))) -> 0.23 | F11: =IF($J11="NR","NR",(VLOOKUP($A$7&$C11&$A$11,Data!$A:$P,F$8,FALSE))) -> 0.14 | G11: =IF($J11="NR","NR",(VLOOKUP($A$7&$C11&$A$11,Data!$A:$P,G$8,FALSE))) -> 0.16 | H11: =IF($J11="NR","NR",(VLOOKUP($A$7&$C11&$A$11,Data!$A:$P,H$8,FALSE))) -> 0.04 | I11: =IF($J11="NR","NR",(VLOOKUP($A$7&$C11&$A$11,Data!$A:$P,I$8,FALSE))) -> 1 | J11: =IF(VLOOKUP($A$7&$C11&"Totals",Data!$A:$P,I$8,FALSE)=0,"NR",(VLOOKUP($A$7&$C11&"Totals",Data!$A:$P,I$8,FALSE))) -> 1 | K11: =IF($Q11="NR","NR",(VLOOKUP($A$7&$C11&$A$11,Data!$A:$P,K$8,FALSE))) -> 0.5 | L11: =IF($Q11="NR","NR",(VLOOKUP($A$7&$C11&$A$11,Data!$A:$P,L$8,FALSE))) -> 0.41 | M11: =IF($Q11="NR","NR",(VLOOKUP($A$7&$C11&$A$11,Data!$A:$P,M$8,FALSE))) -> 0.09 | N11: =IF($Q11="NR","NR",(VLOOKUP($A$7&$C11&$A$11,Data!$A:$P,N$8,FALSE))) -> 0 | O11: =IF($Q11="NR","NR",(VLOOKUP($A$7&$C11&$A$11,Data!$A:$P,O$8,FALSE))) -> 0 | P11: =IF($Q11="NR","NR",(VLOOKUP($A$7&$C11&$A$11,Data!$A:$P,P$8,FALSE))) -> 1 | Q11: =IF(VLOOKUP($A$7&$C11&"Totals",Data!$A:$P,P$8,FALSE)=0,"NR",(VLOOKUP($A$7&$C11&"Totals",Data!$A:$P,P$8,FALSE))) -> 1
A12: =IF(A10=6,"in ALL Eligibility Categories",("in the "&A11&" Eligibility Category")) -> in ALL Eligibility Categories | C12: Aberdeenshire | D12: =IF($J12="NR","NR",(VLOOKUP($A$7&$C12&$A$11,Data!$A:$P,D$8,FALSE))) -> NR | E12: =IF($J12="NR","NR",(VLOOKUP($A$7&$C12&$A$11,Data!$A:$P,E$8,FALSE))) -> NR | F12: =IF($J12="NR","NR",(VLOOKUP($A$7&$C12&$A$11,Data!$A:$P,F$8,FALSE))) -> NR | G12: =IF($J12="NR","NR",(VLOOKUP($A$7&$C12&$A$11,Data!$A:$P,G$8,FALSE))) -> NR | H12: =IF($J12="NR","NR",(VLOOKUP($A$7&$C12&$A$11,Data!$A:$P,H$8,FALSE))) -> NR | I12: =IF($J12="NR","NR",(VLOOKUP($A$7&$C12&$A$11,Data!$A:$P,I$8,FALSE))) -> NR | J12: =IF(VLOOKUP($A$7&$C12&"Totals",Data!$A:$P,I$8,FALSE)=0,"NR",(VLOOKUP($A$7&$C12&"Totals",Data!$A:$P,I$8,FALSE))) -> NR | K12: =IF($Q12="NR","NR",(VLOOKUP($A$7&$C12&$A$11,Data!$A:$P,K$8,FALSE))) -> NR | L12: =IF($Q12="NR","NR",(VLOOKUP($A$7&$C12&$A$11,Data!$A:$P,L$8,FALSE))) -> NR | M12: =IF($Q12="NR","NR",(VLOOKUP($A$7&$C12&$A$11,Data!$A:$P,M$8,FALSE))) -> NR | N12: =IF($Q12="NR","NR",(VLOOKUP($A$7&$C12&$A$11,Data!$A:$P,N$8,FALSE))) -> NR | O12: =IF($Q12="NR","NR",(VLOOKUP($A$7&$C12&$A$11,Data!$A:$P,O$8,FALSE))) -> NR | P12: =IF($Q12="NR","NR",(VLOOKUP($A$7&$C12&$A$11,Data!$A:$P,P$8,FALSE))) -> NR | Q12: =IF(VLOOKUP($A$7&$C12&"Totals",Data!$A:$P,P$8,FALSE)=0,"NR",(VLOOKUP($A$7&$C12&"Totals",Data!$A:$P,P$8,FALSE))) -> NR
C13: Angus | D13: =IF($J13="NR","NR",(VLOOKUP($A$7&$C13&$A$11,Data!$A:$P,D$8,FALSE))) -> 0.35 | E13: =IF($J13="NR","NR",(VLOOKUP($A$7&$C13&$A$11,Data!$A:$P,E$8,FALSE))) -> 0.26 | F13: =IF($J13="NR","NR",(VLOOKUP($A$7&$C13&$A$11,Data!$A:$P,F$8,FALSE))) -> 0.12 | G13: =IF($J13="NR","NR",(VLOOKUP($A$7&$C13&$A$11,Data!$A:$P,G$8,FALSE))) -> 0.03 | H13: =IF($J13="NR","NR",(VLOOKUP($A$7&$C13&$A$11,Data!$A:$P,H$8,FALSE))) -> 0.26 | I13: =IF($J13="NR","NR",(VLOOKUP($A$7&$C13&$A$11,Data!$A:$P,I$8,FALSE))) -> 1 | J13: =IF(VLOOKUP($A$7&$C13&"Totals",Data!$A:$P,I$8,FALSE)=0,"NR",(VLOOKUP($A$7&$C13&"Totals",Data!$A:$P,I$8,FALSE))) -> 1 | K13: =IF($Q13="NR","NR",(VLOOKUP($A$7&$C13&$A$11,Data!$A:$P,K$8,FALSE))) -> 0.67 | L13: =IF($Q13="NR","NR",(VLOOKUP($A$7&$C13&$A$11,Data!$A:$P,L$8,FALSE))) -> 0.3 | M13: =IF($Q13="NR","NR",(VLOOKUP($A$7&$C13&$A$11,Data!$A:$P,M$8,FALSE))) -> 0.01 | N13: =IF($Q13="NR","NR",(VLOOKUP($A$7&$C13&$A$11,Data!$A:$P,N$8,FALSE))) -> 0.02 | O13: =IF($Q13="NR","NR",(VLOOKUP($A$7&$C13&$A$11,Data!$A:$P,O$8,FALSE))) -> 0 | P13: =IF($Q13="NR","NR",(VLOOKUP($A$7&$C13&$A$11,Data!$A:$P,P$8,FALSE))) -> 1 | Q13: =IF(VLOOKUP($A$7&$C13&"Totals",Data!$A:$P,P$8,FALSE)=0,"NR",(VLOOKUP($A$7&$C13&"Totals",Data!$A:$P,P$8,FALSE))) -> 1
C14: Argyll & Bute | D14: =IF($J14="NR","NR",(VLOOKUP($A$7&$C14&$A$11,Data!$A:$P,D$8,FALSE))) -> 0.3 | E14: =IF($J14="NR","NR",(VLOOKUP($A$7&$C14&$A$11,Data!$A:$P,E$8,FALSE))) -> 0.32 | F14: =IF($J14="NR","NR",(VLOOKUP($A$7&$C14&$A$11,Data!$A:$P,F$8,FALSE))) -> 0.1 | G14: =IF($J14="NR","NR",(VLOOKUP($A$7&$C14&$A$11,Data!$A:$P,G$8,FALSE))) -> 0.1 | H14: =IF($J14="NR","NR",(VLOOKUP($A$7&$C14&$A$11,Data!$A:$P,H$8,FALSE))) -> 0.19 | I14: =IF($J14="NR","NR",(VLOOKUP($A$7&$C14&$A$11,Data!$A:$P,I$8,FALSE))) -> 1 | J14: =IF(VLOOKUP($A$7&$C14&"Totals",Data!$A:$P,I$8,FALSE)=0,"NR",(VLOOKUP($A$7&$C14&"Totals",Data!$A:$P,I$8,FALSE))) -> 1 | K14: =IF($Q14="NR","NR",(VLOOKUP($A$7&$C14&$A$11,Data!$A:$P,K$8,FALSE))) -> 0.57 | L14: =IF($Q14="NR","NR",(VLOOKUP($A$7&$C14&$A$11,Data!$A:$P,L$8,FALSE))) -> 0.12 | M14: =IF($Q14="NR","NR",(VLOOKUP($A$7&$C14&$A$11,Data!$A:$P,M$8,FALSE))) -> 0.03 | N14: =IF($Q14="NR","NR",(VLOOKUP($A$7&$C14&$A$11,Data!$A:$P,N$8,FALSE))) -> 0.03 | O14: =IF($Q14="NR","NR",(VLOOKUP($A$7&$C14&$A$11,Data!$A:$P,O$8,FALSE))) -> 0.25 | P14: =IF($Q14="NR","NR",(VLOOKUP($A$7&$C14&$A$11,Data!$A:$P,P$8,FALSE))) -> 1 | Q14: =IF(VLOOKUP($A$7&$C14&"Totals",Data!$A:$P,P$8,FALSE)=0,"NR",(VLOOKUP($A$7&$C14&"Totals",Data!$A:$P,P$8,FALSE))) -> 1
C15: Clackmannanshire | D15: =IF($J15="NR","NR",(VLOOKUP($A$7&$C15&$A$11,Data!$A:$P,D$8,FALSE))) -> 0.36 | E15: =IF($J15="NR","NR",(VLOOKUP($A$7&$C15&$A$11,Data!$A:$P,E$8,FALSE))) -> 0.25 | F15: =IF($J15="NR","NR",(VLOOKUP($A$7&$C15&$A$11,Data!$A:$P,F$8,FALSE))) -> 0.04 | G15: =IF($J15="NR","NR",(VLOOKUP($A$7&$C15&$A$11,Data!$A:$P,G$8,FALSE))) -> 0.05 | H15: =IF($J15="NR","NR",(VLOOKUP($A$7&$C15&$A$11,Data!$A:$P,H$8,FALSE))) -> 0.31 | I15: =IF($J15="NR","NR",(VLOOKUP($A$7&$C15&$A$11,Data!$A:$P,I$8,FALSE))) -> 1 | J15: =IF(VLOOKUP($A$7&$C15&"Totals",Data!$A:$P,I$8,FALSE)=0,"NR",(VLOOKUP($A$7&$C15&"Totals",Data!$A:$P,I$8,FALSE))) -> 1 | K15: =IF($Q15="NR","NR",(VLOOKUP($A$7&$C15&$A$11,Data!$A:$P,K$8,FALSE))) -> 0.1 | L15: =IF($Q15="NR","NR",(VLOOKUP($A$7&$C15&$A$11,Data!$A:$P,L$8,FALSE))) -> 0.71 | M15: =IF($Q15="NR","NR",(VLOOKUP($A$7&$C15&$A$11,Data!$A:$P,M$8,FALSE))) -> 0.16 | N15: =IF($Q15="NR","NR",(VLOOKUP($A$7&$C15&$A$11,Data!$A:$P,N$8,FALSE))) -> 0.01 | O15: =IF($Q15="NR","NR",(VLOOKUP($A$7&$C15&$A$11,Data!$A:$P,O$8,FALSE))) -> 0.02 | P15: =IF($Q15="NR","NR",(VLOOKUP($A$7&$C15&$A$11,Data!$A:$P,P$8,FALSE))) -> 1 | Q15: =IF(VLOOKUP($A$7&$C15&"Totals",Data!$A:$P,P$8,FALSE)=0,"NR",(VLOOKUP($A$7&$C15&"Totals",Data!$A:$P,P$8,FALSE))) -> 1
C16: Dumfries and Galloway | D16: =IF($J16="NR","NR",(VLOOKUP($A$7&$C16&$A$11,Data!$A:$P,D$8,FALSE))) -> 0.31 | E16: =IF($J16="NR","NR",(VLOOKUP($A$7&$C16&$A$11,Data!$A:$P,E$8,FALSE))) -> 0.2 | F16: =IF($J16="NR","NR",(VLOOKUP($A$7&$C16&$A$11,Data!$A:$P,F$8,FALSE))) -> 0.2 | G16: =IF($J16="NR","NR",(VLOOKUP($A$7&$C16&$A$11,Data!$A:$P,G$8,FALSE))) -> 0.11 | H16: =IF($J16="NR","NR",(VLOOKUP($A$7&$C16&$A$11,Data!$A:$P,H$8,FALSE))) -> 0.17 | I16: =IF($J16="NR","NR",(VLOOKUP($A$7&$C16&$A$11,Data!$A:$P,I$8,FALSE))) -> 1 | J16: =IF(VLOOKUP($A$7&$C16&"Totals",Data!$A:$P,I$8,FALSE)=0,"NR",(VLOOKUP($A$7&$C16&"Totals",Data!$A:$P,I$8,FALSE))) -> 1 | K16: =IF($Q16="NR","NR",(VLOOKUP($A$7&$C16&$A$11,Data!$A:$P,K$8,FALSE))) -> 0.21 | L16: =IF($Q16="NR","NR",(VLOOKUP($A$7&$C16&$A$11,Data!$A:$P,L$8,FALSE))) -> 0.34 | M16: =IF($Q16="NR","NR",(VLOOKUP($A$7&$C16&$A$11,Data!$A:$P,M$8,FALSE))) -> 0.09 | N16: =IF($Q16="NR","NR",(VLOOKUP($A$7&$C16&$A$11,Data!$A:$P,N$8,FALSE))) -> 0.04 | O16: =IF($Q16="NR","NR",(VLOOKUP($A$7&$C16&$A$11,Data!$A:$P,O$8,FALSE))) -> 0.31 | P16: =IF($Q16="NR","NR",(VLOOKUP($A$7&$C16&$A$11,Data!$A:$P,P$8,FALSE))) -> 1 | Q16: =IF(VLOOKUP($A$7&$C16&"Totals",Data!$A:$P,P$8,FALSE)=0,"NR",(VLOOKUP($A$7&$C16&"Totals",Data!$A:$P,P$8,FALSE))) -> 1
C17: Dundee City | D17: =IF($J17="NR","NR",(VLOOKUP($A$7&$C17&$A$11,Data!$A:$P,D$8,FALSE))) -> NR | E17: =IF($J17="NR","NR",(VLOOKUP($A$7&$C17&$A$11,Data!$A:$P,E$8,FALSE))) -> NR | F17: =IF($J17="NR","NR",(VLOOKUP($A$7&$C17&$A$11,Data!$A:$P,F$8,FALSE))) -> NR | G17: =IF($J17="NR","NR",(VLOOKUP($A$7&$C17&$A$11,Data!$A:$P,G$8,FALSE))) -> NR | H17: =IF($J17="NR","NR",(VLOOKUP($A$7&$C17&$A$11,Data!$A:$P,H$8,FALSE))) -> NR | I17: =IF($J17="NR","NR",(VLOOKUP($A$7&$C17&$A$11,Data!$A:$P,I$8,FALSE))) -> NR | J17: =IF(VLOOKUP($A$7&$C17&"Totals",Data!$A:$P,I$8,FALSE)=0,"NR",(VLOOKUP($A$7&$C17&"Totals",Data!$A:$P,I$8,FALSE))) -> NR | K17: =IF($Q17="NR","NR",(VLOOKUP($A$7&$C17&$A$11,Data!$A:$P,K$8,FALSE))) -> NR | L17: =IF($Q17="NR","NR",(VLOOKUP($A$7&$C17&$A$11,Data!$A:$P,L$8,FALSE))) -> NR | M17: =IF($Q17="NR","NR",(VLOOKUP($A$7&$C17&$A$11,Data!$A:$P,M$8,FALSE))) -> NR | N17: =IF($Q17="NR","NR",(VLOOKUP($A$7&$C17&$A$11,Data!$A:$P,N$8,FALSE))) -> NR | O17: =IF($Q17="NR","NR",(VLOOKUP($A$7&$C17&$A$11,Data!$A:$P,O$8,FALSE))) -> NR | P17: =IF($Q17="NR","NR",(VLOOKUP($A$7&$C17&$A$11,Data!$A:$P,P$8,FALSE))) -> NR | Q17: =IF(VLOOKUP($A$7&$C17&"Totals",Data!$A:$P,P$8,FALSE)=0,"NR",(VLOOKUP($A$7&$C17&"Totals",Data!$A:$P,P$8,FALSE))) -> NR
C18: East Ayrshire | D18: =IF($J18="NR","NR",(VLOOKUP($A$7&$C18&$A$11,Data!$A:$P,D$8,FALSE))) -> NR | E18: =IF($J18="NR","NR",(VLOOKUP($A$7&$C18&$A$11,Data!$A:$P,E$8,FALSE))) -> NR | F18: =IF($J18="NR","NR",(VLOOKUP($A$7&$C18&$A$11,Data!$A:$P,F$8,FALSE))) -> NR | G18: =IF($J18="NR","NR",(VLOOKUP($A$7&$C18&$A$11,Data!$A:$P,G$8,FALSE))) -> NR | H18: =IF($J18="NR","NR",(VLOOKUP($A$7&$C18&$A$11,Data!$A:$P,H$8,FALSE))) -> NR | I18: =IF($J18="NR","NR",(VLOOKUP($A$7&$C18&$A$11,Data!$A:$P,I$8,FALSE))) -> NR | J18: =IF(VLOOKUP($A$7&$C18&"Totals",Data!$A:$P,I$8,FALSE)=0,"NR",(VLOOKUP($A$7&$C18&"Totals",Data!$A:$P,I$8,FALSE))) -> NR | K18: =IF($Q18="NR","NR",(VLOOKUP($A$7&$C18&$A$11,Data!$A:$P,K$8,FALSE))) -> NR | L18: =IF($Q18="NR","NR",(VLOOKUP($A$7&$C18&$A$11,Data!$A:$P,L$8,FALSE))) -> NR | M18: =IF($Q18="NR","NR",(VLOOKUP($A$7&$C18&$A$11,Data!$A:$P,M$8,FALSE))) -> NR | N18: =IF($Q18="NR","NR",(VLOOKUP($A$7&$C18&$A$11,Data!$A:$P,N$8,FALSE))) -> NR | O18: =IF($Q18="NR","NR",(VLOOKUP($A$7&$C18&$A$11,Data!$A:$P,O$8,FALSE))) -> NR | P18: =IF($Q18="NR","NR",(VLOOKUP($A$7&$C18&$A$11,Data!$A:$P,P$8,FALSE))) -> NR | Q18: =IF(VLOOKUP($A$7&$C18&"Totals",Data!$A:$P,P$8,FALSE)=0,"NR",(VLOOKUP($A$7&$C18&"Totals",Data!$A:$P,P$8,FALSE))) -> NR
C19: East Dunbartonshire | D19: =IF($J19="NR","NR",(VLOOKUP($A$7&$C19&$A$11,Data!$A:$P,D$8,FALSE))) -> 0.28 | E19: =IF($J19="NR","NR",(VLOOKUP($A$7&$C19&$A$11,Data!$A:$P,E$8,FALSE))) -> 0.27 | F19: =IF($J19="NR","NR",(VLOOKUP($A$7&$C19&$A$11,Data!$A:$P,F$8,FALSE))) -> 0.16 | G19: =IF($J19="NR","NR",(VLOOKUP($A$7&$C19&$A$11,Data!$A:$P,G$8,FALSE))) -> 0.07 | H19: =IF($J19="NR","NR",(VLOOKUP($A$7&$C19&$A$11,Data!$A:$P,H$8,FALSE))) -> 0.23 | I19: =IF($J19="NR","NR",(VLOOKUP($A$7&$C19&$A$11,Data!$A:$P,I$8,FALSE))) -> 1 | J19: =IF(VLOOKUP($A$7&$C19&"Totals",Data!$A:$P,I$8,FALSE)=0,"NR",(VLOOKUP($A$7&$C19&"Totals",Data!$A:$P,I$8,FALSE))) -> 1 | K19: =IF($Q19="NR","NR",(VLOOKUP($A$7&$C19&$A$11,Data!$A:$P,K$8,FALSE))) -> 0 | L19: =IF($Q19="NR","NR",(VLOOKUP($A$7&$C19&$A$11,Data!$A:$P,L$8,FALSE))) -> 0.97 | M19: =IF($Q19="NR","NR",(VLOOKUP($A$7&$C19&$A$11,Data!$A:$P,M$8,FALSE))) -> 0.01 | N19: =IF($Q19="NR","NR",(VLOOKUP($A$7&$C19&$A$11,Data!$A:$P,N$8,FALSE))) -> 0.02 | O19: =IF($Q19="NR","NR",(VLOOKUP($A$7&$C19&$A$11,Data!$A:$P,O$8,FALSE))) -> 0.01 | P19: =IF($Q19="NR","NR",(VLOOKUP($A$7&$C19&$A$11,Data!$A:$P,P$8,FALSE))) -> 1 | Q19: =IF(VLOOKUP($A$7&$C19&"Totals",Data!$A:$P,P$8,FALSE)=0,"NR",(VLOOKUP($A$7&$C19&"Totals",Data!$A:$P,P$8,FALSE))) -> 1
C20: East Lothian | D20: =IF($J20="NR","NR",(VLOOKUP($A$7&$C20&$A$11,Data!$A:$P,D$8,FALSE))) -> 0.22 | E20: =IF($J20="NR","NR",(VLOOKUP($A$7&$C20&$A$11,Data!$A:$P,E$8,FALSE))) -> 0.17 | F20: =IF($J20="NR","NR",(VLOOKUP($A$7&$C20&$A$11,Data!$A:$P,F$8,FALSE))) -> 0.18 | G20: =IF($J20="NR","NR",(VLOOKUP($A$7&$C20&$A$11,Data!$A:$P,G$8,FALSE))) -> 0.21 | H20: =IF($J20="NR","NR",(VLOOKUP($A$7&$C20&$A$11,Data!$A:$P,H$8,FALSE))) -> 0.22 | I20: =IF($J20="NR","NR",(VLOOKUP($A$7&$C20&$A$11,Data!$A:$P,I$8,FALSE))) -> 1 | J20: =IF(VLOOKUP($A$7&$C20&"Totals",Data!$A:$P,I$8,FALSE)=0,"NR",(VLOOKUP($A$7&$C20&"Totals",Data!$A:$P,I$8,FALSE))) -> 1 | K20: =IF($Q20="NR","NR",(VLOOKUP($A$7&$C20&$A$11,Data!$A:$P,K$8,FALSE))) -> 0.29 | L20: =IF($Q20="NR","NR",(VLOOKUP($A$7&$C20&$A$11,Data!$A:$P,L$8,FALSE))) -> 0.42 | M20: =IF($Q20="NR","NR",(VLOOKUP($A$7&$C20&$A$11,Data!$A:$P,M$8,FALSE))) -> 0.2 | N20: =IF($Q20="NR","NR",(VLOOKUP($A$7&$C20&$A$11,Data!$A:$P,N$8,FALSE))) -> 0.1 | O20: =IF($Q20="NR","NR",(VLOOKUP($A$7&$C20&$A$11,Data!$A:$P,O$8,FALSE))) -> 0 | P20: =IF($Q20="NR","NR",(VLOOKUP($A$7&$C20&$A$11,Data!$A:$P,P$8,FALSE))) -> 1 | Q20: =IF(VLOOKUP($A$7&$C20&"Totals",Data!$A:$P,P$8,FALSE)=0,"NR",(VLOOKUP($A$7&$C20&"Totals",Data!$A:$P,P$8,FALSE))) -> 1
C21: East Renfrewshire | D21: =IF($J21="NR","NR",(VLOOKUP($A$7&$C21&$A$11,Data!$A:$P,D$8,FALSE))) -> NR | E21: =IF($J21="NR","NR",(VLOOKUP($A$7&$C21&$A$11,Data!$A:$P,E$8,FALSE))) -> NR | F21: =IF($J21="NR","NR",(VLOOKUP($A$7&$C21&$A$11,Data!$A:$P,F$8,FALSE))) -> NR | G21: =IF($J21="NR","NR",(VLOOKUP($A$7&$C21&$A$11,Data!$A:$P,G$8,FALSE))) -> NR | H21: =IF($J21="NR","NR",(VLOOKUP($A$7&$C21&$A$11,Data!$A:$P,H$8,FALSE))) -> NR | I21: =IF($J21="NR","NR",(VLOOKUP($A$7&$C21&$A$11,Data!$A:$P,I$8,FALSE))) -> NR | J21: =IF(VLOOKUP($A$7&$C21&"Totals",Data!$A:$P,I$8,FALSE)=0,"NR",(VLOOKUP($A$7&$C21&"Totals",Data!$A:$P,I$8,FALSE))) -> NR | K21: =IF($Q21="NR","NR",(VLOOKUP($A$7&$C21&$A$11,Data!$A:$P,K$8,FALSE))) -> NR | L21: =IF($Q21="NR","NR",(VLOOKUP($A$7&$C21&$A$11,Data!$A:$P,L$8,FALSE))) -> NR | M21: =IF($Q21="NR","NR",(VLOOKUP($A$7&$C21&$A$11,Data!$A:$P,M$8,FALSE))) -> NR | N21: =IF($Q21="NR","NR",(VLOOKUP($A$7&$C21&$A$11,Data!$A:$P,N$8,FALSE))) -> NR | O21: =IF($Q21="NR","NR",(VLOOKUP($A$7&$C21&$A$11,Data!$A:$P,O$8,FALSE))) -> NR | P21: =IF($Q21="NR","NR",(VLOOKUP($A$7&$C21&$A$11,Data!$A:$P,P$8,FALSE))) -> NR | Q21: =IF(VLOOKUP($A$7&$C21&"Totals",Data!$A:$P,P$8,FALSE)=0,"NR",(VLOOKUP($A$7&$C21&"Totals",Data!$A:$P,P$8,FALSE))) -> NR
C22: Edinburgh, City of | D22: =IF($J22="NR","NR",(VLOOKUP($A$7&$C22&$A$11,Data!$A:$P,D$8,FALSE))) -> 0.35 | E22: =IF($J22="NR","NR",(VLOOKUP($A$7&$C22&$A$11,Data!$A:$P,E$8,FALSE))) -> 0.39 | F22: =IF($J22="NR","NR",(VLOOKUP($A$7&$C22&$A$11,Data!$A:$P,F$8,FALSE))) -> 0.15 | G22: =IF($J22="NR","NR",(VLOOKUP($A$7&$C22&$A$11,Data!$A:$P,G$8,FALSE))) -> 0.05 | H22: =IF($J22="NR","NR",(VLOOKUP($A$7&$C22&$A$11,Data!$A:$P,H$8,FALSE))) -> 0.07 | I22: =IF($J22="NR","NR",(VLOOKUP($A$7&$C22&$A$11,Data!$A:$P,I$8,FALSE))) -> 1 | J22: =IF(VLOOKUP($A$7&$C22&"Totals",Data!$A:$P,I$8,FALSE)=0,"NR",(VLOOKUP($A$7&$C22&"Totals",Data!$A:$P,I$8,FALSE))) -> 1 | K22: =IF($Q22="NR","NR",(VLOOKUP($A$7&$C22&$A$11,Data!$A:$P,K$8,FALSE))) -> 0.02 | L22: =IF($Q22="NR","NR",(VLOOKUP($A$7&$C22&$A$11,Data!$A:$P,L$8,FALSE))) -> 0.49 | M22: =IF($Q22="NR","NR",(VLOOKUP($A$7&$C22&$A$11,Data!$A:$P,M$8,FALSE))) -> 0.17 | N22: =IF($Q22="NR","NR",(VLOOKUP($A$7&$C22&$A$11,Data!$A:$P,N$8,FALSE))) -> 0.1 | O22: =IF($Q22="NR","NR",(VLOOKUP($A$7&$C22&$A$11,Data!$A:$P,O$8,FALSE))) -> 0.22 | P22: =IF($Q22="NR","NR",(VLOOKUP($A$7&$C22&$A$11,Data!$A:$P,P$8,FALSE))) -> 1 | Q22: =IF(VLOOKUP($A$7&$C22&"Totals",Data!$A:$P,P$8,FALSE)=0,"NR",(VLOOKUP($A$7&$C22&"Totals",Data!$A:$P,P$8,FALSE))) -> 1
C23: Eilean Siar | D23: =IF($J23="NR","NR",(VLOOKUP($A$7&$C23&$A$11,Data!$A:$P,D$8,FALSE))) -> 0.16 | E23: =IF($J23="NR","NR",(VLOOKUP($A$7&$C23&$A$11,Data!$A:$P,E$8,FALSE))) -> 0.45 | F23: =IF($J23="NR","NR",(VLOOKUP($A$7&$C23&$A$11,Data!$A:$P,F$8,FALSE))) -> 0.16 | G23: =IF($J23="NR","NR",(VLOOKUP($A$7&$C23&$A$11,Data!$A:$P,G$8,FALSE))) -> 0.13 | H23: =IF($J23="NR","NR",(VLOOKUP($A$7&$C23&$A$11,Data!$A:$P,H$8,FALSE))) -> 0.1 | I23: =IF($J23="NR","NR",(VLOOKUP($A$7&$C23&$A$11,Data!$A:$P,I$8,FALSE))) -> 1 | J23: =IF(VLOOKUP($A$7&$C23&"Totals",Data!$A:$P,I$8,FALSE)=0,"NR",(VLOOKUP($A$7&$C23&"Totals",Data!$A:$P,I$8,FALSE))) -> 1 | K23: =IF($Q23="NR","NR",(VLOOKUP($A$7&$C23&$A$11,Data!$A:$P,K$8,FALSE))) -> 0.2 | L23: =IF($Q23="NR","NR",(VLOOKUP($A$7&$C23&$A$11,Data!$A:$P,L$8,FALSE))) -> 0.6 | M23: =IF($Q23="NR","NR",(VLOOKUP($A$7&$C23&$A$11,Data!$A:$P,M$8,FALSE))) -> 0.07 | N23: =IF($Q23="NR","NR",(VLOOKUP($A$7&$C23&$A$11,Data!$A:$P,N$8,FALSE))) -> 0.03 | O23: =IF($Q23="NR","NR",(VLOOKUP($A$7&$C23&$A$11,Data!$A:$P,O$8,FALSE))) -> 0.1 | P23: =IF($Q23="NR","NR",(VLOOKUP($A$7&$C23&$A$11,Data!$A:$P,P$8,FALSE))) -> 1 | Q23: =IF(VLOOKUP($A$7&$C23&"Totals",Data!$A:$P,P$8,FALSE)=0,"NR",(VLOOKUP($A$7&$C23&"Totals",Data!$A:$P,P$8,FALSE))) -> 1
C24: Falkirk | D24: =IF($J24="NR","NR",(VLOOKUP($A$7&$C24&$A$11,Data!$A:$P,D$8,FALSE))) -> 0.05 | E24: =IF($J24="NR","NR",(VLOOKUP($A$7&$C24&$A$11,Data!$A:$P,E$8,FALSE))) -> 0.15 | F24: =IF($J24="NR","NR",(VLOOKUP($A$7&$C24&$A$11,Data!$A:$P,F$8,FALSE))) -> 0.13 | G24: =IF($J24="NR","NR",(VLOOKUP($A$7&$C24&$A$11,Data!$A:$P,G$8,FALSE))) -> 0.1 | H24: =IF($J24="NR","NR",(VLOOKUP($A$7&$C24&$A$11,Data!$A:$P,H$8,FALSE))) -> 0.57 | I24: =IF($J24="NR","NR",(VLOOKUP($A$7&$C24&$A$11,Data!$A:$P,I$8,FALSE))) -> 1 | J24: =IF(VLOOKUP($A$7&$C24&"Totals",Data!$A:$P,I$8,FALSE)=0,"NR",(VLOOKUP($A$7&$C24&"Totals",Data!$A:$P,I$8,FALSE))) -> 1 | K24: =IF($Q24="NR","NR",(VLOOKUP($A$7&$C24&$A$11,Data!$A:$P,K$8,FALSE))) -> 1 | L24: =IF($Q24="NR","NR",(VLOOKUP($A$7&$C24&$A$11,Data!$A:$P,L$8,FALSE))) -> 0 | M24: =IF($Q24="NR","NR",(VLOOKUP($A$7&$C24&$A$11,Data!$A:$P,M$8,FALSE))) -> 0 | N24: =IF($Q24="NR","NR",(VLOOKUP($A$7&$C24&$A$11,Data!$A:$P,N$8,FALSE))) -> 0 | O24: =IF($Q24="NR","NR",(VLOOKUP($A$7&$C24&$A$11,Data!$A:$P,O$8,FALSE))) -> 0 | P24: =IF($Q24="NR","NR",(VLOOKUP($A$7&$C24&$A$11,Data!$A:$P,P$8,FALSE))) -> 1 | Q24: =IF(VLOOKUP($A$7&$C24&"Totals",Data!$A:$P,P$8,FALSE)=0,"NR",(VLOOKUP($A$7&$C24&"Totals",Data!$A:$P,P$8,FALSE))) -> 1
C25: Fife | D25: =IF($J25="NR","NR",(VLOOKUP($A$7&$C25&$A$11,Data!$A:$P,D$8,FALSE))) -> 0.18 | E25: =IF($J25="NR","NR",(VLOOKUP($A$7&$C25&$A$11,Data!$A:$P,E$8,FALSE))) -> 0.35 | F25: =IF($J25="NR","NR",(VLOOKUP($A$7&$C25&$A$11,Data!$A:$P,F$8,FALSE))) -> 0.13 | G25: =IF($J25="NR","NR",(VLOOKUP($A$7&$C25&$A$11,Data!$A:$P,G$8,FALSE))) -> 0.11 | H25: =IF($J25="NR","NR",(VLOOKUP($A$7&$C25&$A$11,Data!$A:$P,H$8,FALSE))) -> 0.24 | I25: =IF($J25="NR","NR",(VLOOKUP($A$7&$C25&$A$11,Data!$A:$P,I$8,FALSE))) -> 1 | J25: =IF(VLOOKUP($A$7&$C25&"Totals",Data!$A:$P,I$8,FALSE)=0,"NR",(VLOOKUP($A$7&$C25&"Totals",Data!$A:$P,I$8,FALSE))) -> 1 | K25: =IF($Q25="NR","NR",(VLOOKUP($A$7&$C25&$A$11,Data!$A:$P,K$8,FALSE))) -> 0.05 | L25: =IF($Q25="NR","NR",(VLOOKUP($A$7&$C25&$A$11,Data!$A:$P,L$8,FALSE))) -> 0.51 | M25: =IF($Q25="NR","NR",(VLOOKUP($A$7&$C25&$A$11,Data!$A:$P,M$8,FALSE))) -> 0.29 | N25: =IF($Q25="NR","NR",(VLOOKUP($A$7&$C25&$A$11,Data!$A:$P,N$8,FALSE))) -> 0.13 | O25: =IF($Q25="NR","NR",(VLOOKUP($A$7&$C25&$A$11,Data!$A:$P,O$8,FALSE))) -> 0.01 | P25: =IF($Q25="NR","NR",(VLOOKUP($A$7&$C25&$A$11,Data!$A:$P,P$8,FALSE))) -> 1 | Q25: =IF(VLOOKUP($A$7&$C25&"Totals",Data!$A:$P,P$8,FALSE)=0,"NR",(VLOOKUP($A$7&$C25&"Totals",Data!$A:$P,P$8,FALSE))) -> 1
C26: Glasgow City | D26: =IF($J26="NR","NR",(VLOOKUP($A$7&$C26&$A$11,Data!$A:$P,D$8,FALSE))) -> 0.13 | E26: =IF($J26="NR","NR",(VLOOKUP($A$7&$C26&$A$11,Data!$A:$P,E$8,FALSE))) -> 0.4 | F26: =IF($J26="NR","NR",(VLOOKUP($A$7&$C26&$A$11,Data!$A:$P,F$8,FALSE))) -> 0.17 | G26: =IF($J26="NR","NR",(VLOOKUP($A$7&$C26&$A$11,Data!$A:$P,G$8,FALSE))) -> 0.07 | H26: =IF($J26="NR","NR",(VLOOKUP($A$7&$C26&$A$11,Data!$A:$P,H$8,FALSE))) -> 0.24 | I26: =IF($J26="NR","NR",(VLOOKUP($A$7&$C26&$A$11,Data!$A:$P,I$8,FALSE))) -> 1 | J26: =IF(VLOOKUP($A$7&$C26&"Totals",Data!$A:$P,I$8,FALSE)=0,"NR",(VLOOKUP($A$7&$C26&"Totals",Data!$A:$P,I$8,FALSE))) -> 1 | K26: =IF($Q26="NR","NR",(VLOOKUP($A$7&$C26&$A$11,Data!$A:$P,K$8,FALSE))) -> 0 | L26: =IF($Q26="NR","NR",(VLOOKUP($A$7&$C26&$A$11,Data!$A:$P,L$8,FALSE))) -> 1 | M26: =IF($Q26="NR","NR",(VLOOKUP($A$7&$C26&$A$11,Data!$A:$P,M$8,FALSE))) -> 0 | N26: =IF($Q26="NR","NR",(VLOOKUP($A$7&$C26&$A$11,Data!$A:$P,N$8,FALSE))) -> 0 | O26: =IF($Q26="NR","NR",(VLOOKUP($A$7&$C26&$A$11,Data!$A:$P,O$8,FALSE))) -> 0 | P26: =IF($Q26="NR","NR",(VLOOKUP($A$7&$C26&$A$11,Data!$A:$P,P$8,FALSE))) -> 1 | Q26: =IF(VLOOKUP($A$7&$C26&"Totals",Data!$A:$P,P$8,FALSE)=0,"NR",(VLOOKUP($A$7&$C26&"Totals",Data!$A:$P,P$8,FALSE))) -> 1
C27: Highland | D27: =IF($J27="NR","NR",(VLOOKUP($A$7&$C27&$A$11,Data!$A:$P,D$8,FALSE))) -> 0.04 | E27: =IF($J27="NR","NR",(VLOOKUP($A$7&$C27&$A$11,Data!$A:$P,E$8,FALSE))) -> 0.36 | F27: =IF($J27="NR","NR",(VLOOKUP($A$7&$C27&$A$11,Data!$A:$P,F$8,FALSE))) -> 0.14 | G27: =IF($J27="NR","NR",(VLOOKUP($A$7&$C27&$A$11,Data!$A:$P,G$8,FALSE))) -> 0.11 | H27: =IF($J27="NR","NR",(VLOOKUP($A$7&$C27&$A$11,Data!$A:$P,H$8,FALSE))) -> 0.36 | I27: =IF($J27="NR","NR",(VLOOKUP($A$7&$C27&$A$11,Data!$A:$P,I$8,FALSE))) -> 1 | J27: =IF(VLOOKUP($A$7&$C27&"Totals",Data!$A:$P,I$8,FALSE)=0,"NR",(VLOOKUP($A$7&$C27&"Totals",Data!$A:$P,I$8,FALSE))) -> 1 | K27: =IF($Q27="NR","NR",(VLOOKUP($A$7&$C27&$A$11,Data!$A:$P,K$8,FALSE))) -> NR | L27: =IF($Q27="NR","NR",(VLOOKUP($A$7&$C27&$A$11,Data!$A:$P,L$8,FALSE))) -> NR | M27: =IF($Q27="NR","NR",(VLOOKUP($A$7&$C27&$A$11,Data!$A:$P,M$8,FALSE))) -> NR | N27: =IF($Q27="NR","NR",(VLOOKUP($A$7&$C27&$A$11,Data!$A:$P,N$8,FALSE))) -> NR | O27: =IF($Q27="NR","NR",(VLOOKUP($A$7&$C27&$A$11,Data!$A:$P,O$8,FALSE))) -> NR | P27: =IF($Q27="NR","NR",(VLOOKUP($A$7&$C27&$A$11,Data!$A:$P,P$8,FALSE))) -> NR | Q27: =IF(VLOOKUP($A$7&$C27&"Totals",Data!$A:$P,P$8,FALSE)=0,"NR",(VLOOKUP($A$7&$C27&"Totals",Data!$A:$P,P$8,FALSE))) -> NR
C28: Inverclyde | D28: =IF($J28="NR","NR",(VLOOKUP($A$7&$C28&$A$11,Data!$A:$P,D$8,FALSE))) -> 0.13 | E28: =IF($J28="NR","NR",(VLOOKUP($A$7&$C28&$A$11,Data!$A:$P,E$8,FALSE))) -> 0.39 | F28: =IF($J28="NR","NR",(VLOOKUP($A$7&$C28&$A$11,Data!$A:$P,F$8,FALSE))) -> 0.08 | G28: =IF($J28="NR","NR",(VLOOKUP($A$7&$C28&$A$11,Data!$A:$P,G$8,FALSE))) -> 0.23 | H28: =IF($J28="NR","NR",(VLOOKUP($A$7&$C28&$A$11,Data!$A:$P,H$8,FALSE))) -> 0.17 | I28: =IF($J28="NR","NR",(VLOOKUP($A$7&$C28&$A$11,Data!$A:$P,I$8,FALSE))) -> 1 | J28: =IF(VLOOKUP($A$7&$C28&"Totals",Data!$A:$P,I$8,FALSE)=0,"NR",(VLOOKUP($A$7&$C28&"Totals",Data!$A:$P,I$8,FALSE))) -> 1 | K28: =IF($Q28="NR","NR",(VLOOKUP($A$7&$C28&$A$11,Data!$A:$P,K$8,FALSE))) -> 0.13 | L28: =IF($Q28="NR","NR",(VLOOKUP($A$7&$C28&$A$11,Data!$A:$P,L$8,FALSE))) -> 0.82 | M28: =IF($Q28="NR","NR",(VLOOKUP($A$7&$C28&$A$11,Data!$A:$P,M$8,FALSE))) -> 0.06 | N28: =IF($Q28="NR","NR",(VLOOKUP($A$7&$C28&$A$11,Data!$A:$P,N$8,FALSE))) -> 0 | O28: =IF($Q28="NR","NR",(VLOOKUP($A$7&$C28&$A$11,Data!$A:$P,O$8,FALSE))) -> 0 | P28: =IF($Q28="NR","NR",(VLOOKUP($A$7&$C28&$A$11,Data!$A:$P,P$8,FALSE))) -> 1 | Q28: =IF(VLOOKUP($A$7&$C28&"Totals",Data!$A:$P,P$8,FALSE)=0,"NR",(VLOOKUP($A$7&$C28&"Totals",Data!$A:$P,P$8,FALSE))) -> 1
C29: Midlothian | D29: =IF($J29="NR","NR",(VLOOKUP($A$7&$C29&$A$11,Data!$A:$P,D$8,FALSE))) -> 0.01 | E29: =IF($J29="NR","NR",(VLOOKUP($A$7&$C29&$A$11,Data!$A:$P,E$8,FALSE))) -> 0.08 | F29: =IF($J29="NR","NR",(VLOOKUP($A$7&$C29&$A$11,Data!$A:$P,F$8,FALSE))) -> 0.16 | G29: =IF($J29="NR","NR",(VLOOKUP($A$7&$C29&$A$11,Data!$A:$P,G$8,FALSE))) -> 0.13 | H29: =IF($J29="NR","NR",(VLOOKUP($A$7&$C29&$A$11,Data!$A:$P,H$8,FALSE))) -> 0.62 | I29: =IF($J29="NR","NR",(VLOOKUP($A$7&$C29&$A$11,Data!$A:$P,I$8,FALSE))) -> 1 | J29: =IF(VLOOKUP($A$7&$C29&"Totals",Data!$A:$P,I$8,FALSE)=0,"NR",(VLOOKUP($A$7&$C29&"Totals",Data!$A:$P,I$8,FALSE))) -> 1 | K29: =IF($Q29="NR","NR",(VLOOKUP($A$7&$C29&$A$11,Data!$A:$P,K$8,FALSE))) -> 0 | L29: =IF($Q29="NR","NR",(VLOOKUP($A$7&$C29&$A$11,Data!$A:$P,L$8,FALSE))) -> 0 | M29: =IF($Q29="NR","NR",(VLOOKUP($A$7&$C29&$A$11,Data!$A:$P,M$8,FALSE))) -> 0 | N29: =IF($Q29="NR","NR",(VLOOKUP($A$7&$C29&$A$11,Data!$A:$P,N$8,FALSE))) -> 0 | O29: =IF($Q29="NR","NR",(VLOOKUP($A$7&$C29&$A$11,Data!$A:$P,O$8,FALSE))) -> 1 | P29: =IF($Q29="NR","NR",(VLOOKUP($A$7&$C29&$A$11,Data!$A:$P,P$8,FALSE))) -> 1 | Q29: =IF(VLOOKUP($A$7&$C29&"Totals",Data!$A:$P,P$8,FALSE)=0,"NR",(VLOOKUP($A$7&$C29&"Totals",Data!$A:$P,P$8,FALSE))) -> 1
C30: Moray | D30: =IF($J30="NR","NR",(VLOOKUP($A$7&$C30&$A$11,Data!$A:$P,D$8,FALSE))) -> 0.24 | E30: =IF($J30="NR","NR",(VLOOKUP($A$7&$C30&$A$11,Data!$A:$P,E$8,FALSE))) -> 0.22 | F30: =IF($J30="NR","NR",(VLOOKUP($A$7&$C30&$A$11,Data!$A:$P,F$8,FALSE))) -> 0.18 | G30: =IF($J30="NR","NR",(VLOOKUP($A$7&$C30&$A$11,Data!$A:$P,G$8,FALSE))) -> 0.17 | H30: =IF($J30="NR","NR",(VLOOKUP($A$7&$C30&$A$11,Data!$A:$P,H$8,FALSE))) -> 0.19 | I30: =IF($J30="NR","NR",(VLOOKUP($A$7&$C30&$A$11,Data!$A:$P,I$8,FALSE))) -> 1 | J30: =IF(VLOOKUP($A$7&$C30&"Totals",Data!$A:$P,I$8,FALSE)=0,"NR",(VLOOKUP($A$7&$C30&"Totals",Data!$A:$P,I$8,FALSE))) -> 1 | K30: =IF($Q30="NR","NR",(VLOOKUP($A$7&$C30&$A$11,Data!$A:$P,K$8,FALSE))) -> 0.36 | L30: =IF($Q30="NR","NR",(VLOOKUP($A$7&$C30&$A$11,Data!$A:$P,L$8,FALSE))) -> 0.04 | M30: =IF($Q30="NR","NR",(VLOOKUP($A$7&$C30&$A$11,Data!$A:$P,M$8,FALSE))) -> 0.04 | N30: =IF($Q30="NR","NR",(VLOOKUP($A$7&$C30&$A$11,Data!$A:$P,N$8,FALSE))) -> 0.03 | O30: =IF($Q30="NR","NR",(VLOOKUP($A$7&$C30&$A$11,Data!$A:$P,O$8,FALSE))) -> 0.53 | P30: =IF($Q30="NR","NR",(VLOOKUP($A$7&$C30&$A$11,Data!$A:$P,P$8,FALSE))) -> 1 | Q30: =IF(VLOOKUP($A$7&$C30&"Totals",Data!$A:$P,P$8,FALSE)=0,"NR",(VLOOKUP($A$7&$C30&"Totals",Data!$A:$P,P$8,FALSE))) -> 1
C31: North Ayrshire | D31: =IF($J31="NR","NR",(VLOOKUP($A$7&$C31&$A$11,Data!$A:$P,D$8,FALSE))) -> NR | E31: =IF($J31="NR","NR",(VLOOKUP($A$7&$C31&$A$11,Data!$A:$P,E$8,FALSE))) -> NR | F31: =IF($J31="NR","NR",(VLOOKUP($A$7&$C31&$A$11,Data!$A:$P,F$8,FALSE))) -> NR | G31: =IF($J31="NR","NR",(VLOOKUP($A$7&$C31&$A$11,Data!$A:$P,G$8,FALSE))) -> NR | H31: =IF($J31="NR","NR",(VLOOKUP($A$7&$C31&$A$11,Data!$A:$P,H$8,FALSE))) -> NR | I31: =IF($J31="NR","NR",(VLOOKUP($A$7&$C31&$A$11,Data!$A:$P,I$8,FALSE))) -> NR | J31: =IF(VLOOKUP($A$7&$C31&"Totals",Data!$A:$P,I$8,FALSE)=0,"NR",(VLOOKUP($A$7&$C31&"Totals",Data!$A:$P,I$8,FALSE))) -> NR | K31: =IF($Q31="NR","NR",(VLOOKUP($A$7&$C31&$A$11,Data!$A:$P,K$8,FALSE))) -> NR | L31: =IF($Q31="NR","NR",(VLOOKUP($A$7&$C31&$A$11,Data!$A:$P,L$8,FALSE))) -> NR | M31: =IF($Q31="NR","NR",(VLOOKUP($A$7&$C31&$A$11,Data!$A:$P,M$8,FALSE))) -> NR | N31: =IF($Q31="NR","NR",(VLOOKUP($A$7&$C31&$A$11,Data!$A:$P,N$8,FALSE))) -> NR | O31: =IF($Q31="NR","NR",(VLOOKUP($A$7&$C31&$A$11,Data!$A:$P,O$8,FALSE))) -> NR | P31: =IF($Q31="NR","NR",(VLOOKUP($A$7&$C31&$A$11,Data!$A:$P,P$8,FALSE))) -> NR | Q31: =IF(VLOOKUP($A$7&$C31&"Totals",Data!$A:$P,P$8,FALSE)=0,"NR",(VLOOKUP($A$7&$C31&"Totals",Data!$A:$P,P$8,FALSE))) -> NR
C32: North Lanarkshire | D32: =IF($J32="NR","NR",(VLOOKUP($A$7&$C32&$A$11,Data!$A:$P,D$8,FALSE))) -> 0.23 | E32: =IF($J32="NR","NR",(VLOOKUP($A$7&$C32&$A$11,Data!$A:$P,E$8,FALSE))) -> 0.26 | F32: =IF($J32="NR","NR",(VLOOKUP($A$7&$C32&$A$11,Data!$A:$P,F$8,FALSE))) -> 0.11 | G32: =IF($J32="NR","NR",(VLOOKUP($A$7&$C32&$A$11,Data!$A:$P,G$8,FALSE))) -> 0.07 | H32: =IF($J32="NR","NR",(VLOOKUP($A$7&$C32&$A$11,Data!$A:$P,H$8,FALSE))) -> 0.33 | I32: =IF($J32="NR","NR",(VLOOKUP($A$7&$C32&$A$11,Data!$A:$P,I$8,FALSE))) -> 1 | J32: =IF(VLOOKUP($A$7&$C32&"Totals",Data!$A:$P,I$8,FALSE)=0,"NR",(VLOOKUP($A$7&$C32&"Totals",Data!$A:$P,I$8,FALSE))) -> 1 | K32: =IF($Q32="NR","NR",(VLOOKUP($A$7&$C32&$A$11,Data!$A:$P,K$8,FALSE))) -> 0.22 | L32: =IF($Q32="NR","NR",(VLOOKUP($A$7&$C32&$A$11,Data!$A:$P,L$8,FALSE))) -> 0.68 | M32: =IF($Q32="NR","NR",(VLOOKUP($A$7&$C32&$A$11,Data!$A:$P,M$8,FALSE))) -> 0.05 | N32: =IF($Q32="NR","NR",(VLOOKUP($A$7&$C32&$A$11,Data!$A:$P,N$8,FALSE))) -> 0.01 | O32: =IF($Q32="NR","NR",(VLOOKUP($A$7&$C32&$A$11,Data!$A:$P,O$8,FALSE))) -> 0.04 | P32: =IF($Q32="NR","NR",(VLOOKUP($A$7&$C32&$A$11,Data!$A:$P,P$8,FALSE))) -> 1 | Q32: =IF(VLOOKUP($A$7&$C32&"Totals",Data!$A:$P,P$8,FALSE)=0,"NR",(VLOOKUP($A$7&$C32&"Totals",Data!$A:$P,P$8,FALSE))) -> 1
C33: Orkney Islands | D33: =IF($J33="NR","NR",(VLOOKUP($A$7&$C33&$A$11,Data!$A:$P,D$8,FALSE))) -> NR | E33: =IF($J33="NR","NR",(VLOOKUP($A$7&$C33&$A$11,Data!$A:$P,E$8,FALSE))) -> NR | F33: =IF($J33="NR","NR",(VLOOKUP($A$7&$C33&$A$11,Data!$A:$P,F$8,FALSE))) -> NR | G33: =IF($J33="NR","NR",(VLOOKUP($A$7&$C33&$A$11,Data!$A:$P,G$8,FALSE))) -> NR | H33: =IF($J33="NR","NR",(VLOOKUP($A$7&$C33&$A$11,Data!$A:$P,H$8,FALSE))) -> NR | I33: =IF($J33="NR","NR",(VLOOKUP($A$7&$C33&$A$11,Data!$A:$P,I$8,FALSE))) -> NR | J33: =IF(VLOOKUP($A$7&$C33&"Totals",Data!$A:$P,I$8,FALSE)=0,"NR",(VLOOKUP($A$7&$C33&"Totals",Data!$A:$P,I$8,FALSE))) -> NR | K33: =IF($Q33="NR","NR",(VLOOKUP($A$7&$C33&$A$11,Data!$A:$P,K$8,FALSE))) -> NR | L33: =IF($Q33="NR","NR",(VLOOKUP($A$7&$C33&$A$11,Data!$A:$P,L$8,FALSE))) -> NR | M33: =IF($Q33="NR","NR",(VLOOKUP($A$7&$C33&$A$11,Data!$A:$P,M$8,FALSE))) -> NR | N33: =IF($Q33="NR","NR",(VLOOKUP($A$7&$C33&$A$11,Data!$A:$P,N$8,FALSE))) -> NR | O33: =IF($Q33="NR","NR",(VLOOKUP($A$7&$C33&$A$11,Data!$A:$P,O$8,FALSE))) -> NR | P33: =IF($Q33="NR","NR",(VLOOKUP($A$7&$C33&$A$11,Data!$A:$P,P$8,FALSE))) -> NR | Q33: =IF(VLOOKUP($A$7&$C33&"Totals",Data!$A:$P,P$8,FALSE)=0,"NR",(VLOOKUP($A$7&$C33&"Totals",Data!$A:$P,P$8,FALSE))) -> NR
C34: Perth & Kinross | D34: =IF($J34="NR","NR",(VLOOKUP($A$7&$C34&$A$11,Data!$A:$P,D$8,FALSE))) -> 0.28 | E34: =IF($J34="NR","NR",(VLOOKUP($A$7&$C34&$A$11,Data!$A:$P,E$8,FALSE))) -> 0.28 | F34: =IF($J34="NR","NR",(VLOOKUP($A$7&$C34&$A$11,Data!$A:$P,F$8,FALSE))) -> 0.14 | G34: =IF($J34="NR","NR",(VLOOKUP($A$7&$C34&$A$11,Data!$A:$P,G$8,FALSE))) -> 0.1 | H34: =IF($J34="NR","NR",(VLOOKUP($A$7&$C34&$A$11,Data!$A:$P,H$8,FALSE))) -> 0.21 | I34: =IF($J34="NR","NR",(VLOOKUP($A$7&$C34&$A$11,Data!$A:$P,I$8,FALSE))) -> 1 | J34: =IF(VLOOKUP($A$7&$C34&"Totals",Data!$A:$P,I$8,FALSE)=0,"NR",(VLOOKUP($A$7&$C34&"Totals",Data!$A:$P,I$8,FALSE))) -> 1 | K34: =IF($Q34="NR","NR",(VLOOKUP($A$7&$C34&$A$11,Data!$A:$P,K$8,FALSE))) -> 0.11 | L34: =IF($Q34="NR","NR",(VLOOKUP($A$7&$C34&$A$11,Data!$A:$P,L$8,FALSE))) -> 0.59 | M34: =IF($Q34="NR","NR",(VLOOKUP($A$7&$C34&$A$11,Data!$A:$P,M$8,FALSE))) -> 0.16 | N34: =IF($Q34="NR","NR",(VLOOKUP($A$7&$C34&$A$11,Data!$A:$P,N$8,FALSE))) -> 0.04 | O34: =IF($Q34="NR","NR",(VLOOKUP($A$7&$C34&$A$11,Data!$A:$P,O$8,FALSE))) -> 0.09 | P34: =IF($Q34="NR","NR",(VLOOKUP($A$7&$C34&$A$11,Data!$A:$P,P$8,FALSE))) -> 1 | Q34: =IF(VLOOKUP($A$7&$C34&"Totals",Data!$A:$P,P$8,FALSE)=0,"NR",(VLOOKUP($A$7&$C34&"Totals",Data!$A:$P,P$8,FALSE))) -> 1
C35: Renfrewshire | D35: =IF($J35="NR","NR",(VLOOKUP($A$7&$C35&$A$11,Data!$A:$P,D$8,FALSE))) -> 1 | E35: =IF($J35="NR","NR",(VLOOKUP($A$7&$C35&$A$11,Data!$A:$P,E$8,FALSE))) -> 0 | F35: =IF($J35="NR","NR",(VLOOKUP($A$7&$C35&$A$11,Data!$A:$P,F$8,FALSE))) -> 0 | G35: =IF($J35="NR","NR",(VLOOKUP($A$7&$C35&$A$11,Data!$A:$P,G$8,FALSE))) -> 0 | H35: =IF($J35="NR","NR",(VLOOKUP($A$7&$C35&$A$11,Data!$A:$P,H$8,FALSE))) -> 0 | I35: =IF($J35="NR","NR",(VLOOKUP($A$7&$C35&$A$11,Data!$A:$P,I$8,FALSE))) -> 1 | J35: =IF(VLOOKUP($A$7&$C35&"Totals",Data!$A:$P,I$8,FALSE)=0,"NR",(VLOOKUP($A$7&$C35&"Totals",Data!$A:$P,I$8,FALSE))) -> 1 | K35: =IF($Q35="NR","NR",(VLOOKUP($A$7&$C35&$A$11,Data!$A:$P,K$8,FALSE))) -> 0 | L35: =IF($Q35="NR","NR",(VLOOKUP($A$7&$C35&$A$11,Data!$A:$P,L$8,FALSE))) -> 0.82 | M35: =IF($Q35="NR","NR",(VLOOKUP($A$7&$C35&$A$11,Data!$A:$P,M$8,FALSE))) -> 0.09 | N35: =IF($Q35="NR","NR",(VLOOKUP($A$7&$C35&$A$11,Data!$A:$P,N$8,FALSE))) -> 0.05 | O35: =IF($Q35="NR","NR",(VLOOKUP($A$7&$C35&$A$11,Data!$A:$P,O$8,FALSE))) -> 0.04 | P35: =IF($Q35="NR","NR",(VLOOKUP($A$7&$C35&$A$11,Data!$A:$P,P$8,FALSE))) -> 1 | Q35: =IF(VLOOKUP($A$7&$C35&"Totals",Data!$A:$P,P$8,FALSE)=0,"NR",(VLOOKUP($A$7&$C35&"Totals",Data!$A:$P,P$8,FALSE))) -> 1
C36: Scottish Borders | D36: =IF($J36="NR","NR",(VLOOKUP($A$7&$C36&$A$11,Data!$A:$P,D$8,FALSE))) -> 0.15 | E36: =IF($J36="NR","NR",(VLOOKUP($A$7&$C36&$A$11,Data!$A:$P,E$8,FALSE))) -> 0.27 | F36: =IF($J36="NR","NR",(VLOOKUP($A$7&$C36&$A$11,Data!$A:$P,F$8,FALSE))) -> 0.18 | G36: =IF($J36="NR","NR",(VLOOKUP($A$7&$C36&$A$11,Data!$A:$P,G$8,FALSE))) -> 0.07 | H36: =IF($J36="NR","NR",(VLOOKUP($A$7&$C36&$A$11,Data!$A:$P,H$8,FALSE))) -> 0.33 | I36: =IF($J36="NR","NR",(VLOOKUP($A$7&$C36&$A$11,Data!$A:$P,I$8,FALSE))) -> 1 | J36: =IF(VLOOKUP($A$7&$C36&"Totals",Data!$A:$P,I$8,FALSE)=0,"NR",(VLOOKUP($A$7&$C36&"Totals",Data!$A:$P,I$8,FALSE))) -> 1 | K36: =IF($Q36="NR","NR",(VLOOKUP($A$7&$C36&$A$11,Data!$A:$P,K$8,FALSE))) -> 0.02 | L36: =IF($Q36="NR","NR",(VLOOKUP($A$7&$C36&$A$11,Data!$A:$P,L$8,FALSE))) -> 0.83 | M36: =IF($Q36="NR","NR",(VLOOKUP($A$7&$C36&$A$11,Data!$A:$P,M$8,FALSE))) -> 0.1 | N36: =IF($Q36="NR","NR",(VLOOKUP($A$7&$C36&$A$11,Data!$A:$P,N$8,FALSE))) -> 0.03 | O36: =IF($Q36="NR","NR",(VLOOKUP($A$7&$C36&$A$11,Data!$A:$P,O$8,FALSE))) -> 0.01 | P36: =IF($Q36="NR","NR",(VLOOKUP($A$7&$C36&$A$11,Data!$A:$P,P$8,FALSE))) -> 1 | Q36: =IF(VLOOKUP($A$7&$C36&"Totals",Data!$A:$P,P$8,FALSE)=0,"NR",(VLOOKUP($A$7&$C36&"Totals",Data!$A:$P,P$8,FALSE))) -> 1
C37: Shetland Islands | D37: =IF($J37="NR","NR",(VLOOKUP($A$7&$C37&$A$11,Data!$A:$P,D$8,FALSE))) -> 0.1 | E37: =IF($J37="NR","NR",(VLOOKUP($A$7&$C37&$A$11,Data!$A:$P,E$8,FALSE))) -> 0.22 | F37: =IF($J37="NR","NR",(VLOOKUP($A$7&$C37&$A$11,Data!$A:$P,F$8,FALSE))) -> 0.26 | G37: =IF($J37="NR","NR",(VLOOKUP($A$7&$C37&$A$11,Data!$A:$P,G$8,FALSE))) -> 0.12 | H37: =IF($J37="NR","NR",(VLOOKUP($A$7&$C37&$A$11,Data!$A:$P,H$8,FALSE))) -> 0.3 | I37: =IF($J37="NR","NR",(VLOOKUP($A$7&$C37&$A$11,Data!$A:$P,I$8,FALSE))) -> 1 | J37: =IF(VLOOKUP($A$7&$C37&"Totals",Data!$A:$P,I$8,FALSE)=0,"NR",(VLOOKUP($A$7&$C37&"Totals",Data!$A:$P,I$8,FALSE))) -> 1 | K37: =IF($Q37="NR","NR",(VLOOKUP($A$7&$C37&$A$11,Data!$A:$P,K$8,FALSE))) -> 0.14 | L37: =IF($Q37="NR","NR",(VLOOKUP($A$7&$C37&$A$11,Data!$A:$P,L$8,FALSE))) -> 0.69 | M37: =IF($Q37="NR","NR",(VLOOKUP($A$7&$C37&$A$11,Data!$A:$P,M$8,FALSE))) -> 0.1 | N37: =IF($Q37="NR","NR",(VLOOKUP($A$7&$C37&$A$11,Data!$A:$P,N$8,FALSE))) -> 0.07 | O37: =IF($Q37="NR","NR",(VLOOKUP($A$7&$C37&$A$11,Data!$A:$P,O$8,FALSE))) -> 0 | P37: =IF($Q37="NR","NR",(VLOOKUP($A$7&$C37&$A$11,Data!$A:$P,P$8,FALSE))) -> 1 | Q37: =IF(VLOOKUP($A$7&$C37&"Totals",Data!$A:$P,P$8,FALSE)=0,"NR",(VLOOKUP($A$7&$C37&"Totals",Data!$A:$P,P$8,FALSE))) -> 1
C38: South Ayrshire | D38: =IF($J38="NR","NR",(VLOOKUP($A$7&$C38&$A$11,Data!$A:$P,D$8,FALSE))) -> NR | E38: =IF($J38="NR","NR",(VLOOKUP($A$7&$C38&$A$11,Data!$A:$P,E$8,FALSE))) -> NR | F38: =IF($J38="NR","NR",(VLOOKUP($A$7&$C38&$A$11,Data!$A:$P,F$8,FALSE))) -> NR | G38: =IF($J38="NR","NR",(VLOOKUP($A$7&$C38&$A$11,Data!$A:$P,G$8,FALSE))) -> NR | H38: =IF($J38="NR","NR",(VLOOKUP($A$7&$C38&$A$11,Data!$A:$P,H$8,FALSE))) -> NR | I38: =IF($J38="NR","NR",(VLOOKUP($A$7&$C38&$A$11,Data!$A:$P,I$8,FALSE))) -> NR | J38: =IF(VLOOKUP($A$7&$C38&"Totals",Data!$A:$P,I$8,FALSE)=0,"NR",(VLOOKUP($A$7&$C38&"Totals",Data!$A:$P,I$8,FALSE))) -> NR | K38: =IF($Q38="NR","NR",(VLOOKUP($A$7&$C38&$A$11,Data!$A:$P,K$8,FALSE))) -> NR | L38: =IF($Q38="NR","NR",(VLOOKUP($A$7&$C38&$A$11,Data!$A:$P,L$8,FALSE))) -> NR | M38: =IF($Q38="NR","NR",(VLOOKUP($A$7&$C38&$A$11,Data!$A:$P,M$8,FALSE))) -> NR | N38: =IF($Q38="NR","NR",(VLOOKUP($A$7&$C38&$A$11,Data!$A:$P,N$8,FALSE))) -> NR | O38: =IF($Q38="NR","NR",(VLOOKUP($A$7&$C38&$A$11,Data!$A:$P,O$8,FALSE))) -> NR | P38: =IF($Q38="NR","NR",(VLOOKUP($A$7&$C38&$A$11,Data!$A:$P,P$8,FALSE))) -> NR | Q38: =IF(VLOOKUP($A$7&$C38&"Totals",Data!$A:$P,P$8,FALSE)=0,"NR",(VLOOKUP($A$7&$C38&"Totals",Data!$A:$P,P$8,FALSE))) -> NR
C39: South Lanarkshire | D39: =IF($J39="NR","NR",(VLOOKUP($A$7&$C39&$A$11,Data!$A:$P,D$8,FALSE))) -> NR | E39: =IF($J39="NR","NR",(VLOOKUP($A$7&$C39&$A$11,Data!$A:$P,E$8,FALSE))) -> NR | F39: =IF($J39="NR","NR",(VLOOKUP($A$7&$C39&$A$11,Data!$A:$P,F$8,FALSE))) -> NR | G39: =IF($J39="NR","NR",(VLOOKUP($A$7&$C39&$A$11,Data!$A:$P,G$8,FALSE))) -> NR | H39: =IF($J39="NR","NR",(VLOOKUP($A$7&$C39&$A$11,Data!$A:$P,H$8,FALSE))) -> NR | I39: =IF($J39="NR","NR",(VLOOKUP($A$7&$C39&$A$11,Data!$A:$P,I$8,FALSE))) -> NR | J39: =IF(VLOOKUP($A$7&$C39&"Totals",Data!$A:$P,I$8,FALSE)=0,"NR",(VLOOKUP($A$7&$C39&"Totals",Data!$A:$P,I$8,FALSE))) -> NR | K39: =IF($Q39="NR","NR",(VLOOKUP($A$7&$C39&$A$11,Data!$A:$P,K$8,FALSE))) -> NR | L39: =IF($Q39="NR","NR",(VLOOKUP($A$7&$C39&$A$11,Data!$A:$P,L$8,FALSE))) -> NR | M39: =IF($Q39="NR","NR",(VLOOKUP($A$7&$C39&$A$11,Data!$A:$P,M$8,FALSE))) -> NR | N39: =IF($Q39="NR","NR",(VLOOKUP($A$7&$C39&$A$11,Data!$A:$P,N$8,FALSE))) -> NR | O39: =IF($Q39="NR","NR",(VLOOKUP($A$7&$C39&$A$11,Data!$A:$P,O$8,FALSE))) -> NR | P39: =IF($Q39="NR","NR",(VLOOKUP($A$7&$C39&$A$11,Data!$A:$P,P$8,FALSE))) -> NR | Q39: =IF(VLOOKUP($A$7&$C39&"Totals",Data!$A:$P,P$8,FALSE)=0,"NR",(VLOOKUP($A$7&$C39&"Totals",Data!$A:$P,P$8,FALSE))) -> NR
C40: Stirling | D40: =IF($J40="NR","NR",(VLOOKUP($A$7&$C40&$A$11,Data!$A:$P,D$8,FALSE))) -> 0.73 | E40: =IF($J40="NR","NR",(VLOOKUP($A$7&$C40&$A$11,Data!$A:$P,E$8,FALSE))) -> 0.03 | F40: =IF($J40="NR","NR",(VLOOKUP($A$7&$C40&$A$11,Data!$A:$P,F$8,FALSE))) -> 0.02 | G40: =IF($J40="NR","NR",(VLOOKUP($A$7&$C40&$A$11,Data!$A:$P,G$8,FALSE))) -> 0.03 | H40: =IF($J40="NR","NR",(VLOOKUP($A$7&$C40&$A$11,Data!$A:$P,H$8,FALSE))) -> 0.19 | I40: =IF($J40="NR","NR",(VLOOKUP($A$7&$C40&$A$11,Data!$A:$P,I$8,FALSE))) -> 1 | J40: =IF(VLOOKUP($A$7&$C40&"Totals",Data!$A:$P,I$8,FALSE)=0,"NR",(VLOOKUP($A$7&$C40&"Totals",Data!$A:$P,I$8,FALSE))) -> 1 | K40: =IF($Q40="NR","NR",(VLOOKUP($A$7&$C40&$A$11,Data!$A:$P,K$8,FALSE))) -> 0.16 | L40: =IF($Q40="NR","NR",(VLOOKUP($A$7&$C40&$A$11,Data!$A:$P,L$8,FALSE))) -> 0.44 | M40: =IF($Q40="NR","NR",(VLOOKUP($A$7&$C40&$A$11,Data!$A:$P,M$8,FALSE))) -> 0.26 | N40: =IF($Q40="NR","NR",(VLOOKUP($A$7&$C40&$A$11,Data!$A:$P,N$8,FALSE))) -> 0.07 | O40: =IF($Q40="NR","NR",(VLOOKUP($A$7&$C40&$A$11,Data!$A:$P,O$8,FALSE))) -> 0.07 | P40: =IF($Q40="NR","NR",(VLOOKUP($A$7&$C40&$A$11,Data!$A:$P,P$8,FALSE))) -> 1 | Q40: =IF(VLOOKUP($A$7&$C40&"Totals",Data!$A:$P,P$8,FALSE)=0,"NR",(VLOOKUP($A$7&$C40&"Totals",Data!$A:$P,P$8,FALSE))) -> 1
C41: West Dunbartonshire | D41: =IF($J41="NR","NR",(VLOOKUP($A$7&$C41&$A$11,Data!$A:$P,D$8,FALSE))) -> 0.11 | E41: =IF($J41="NR","NR",(VLOOKUP($A$7&$C41&$A$11,Data!$A:$P,E$8,FALSE))) -> 0.16 | F41: =IF($J41="NR","NR",(VLOOKUP($A$7&$C41&$A$11,Data!$A:$P,F$8,FALSE))) -> 0.1 | G41: =IF($J41="NR","NR",(VLOOKUP($A$7&$C41&$A$11,Data!$A:$P,G$8,FALSE))) -> 0.1 | H41: =IF($J41="NR","NR",(VLOOKUP($A$7&$C41&$A$11,Data!$A:$P,H$8,FALSE))) -> 0.52 | I41: =IF($J41="NR","NR",(VLOOKUP($A$7&$C41&$A$11,Data!$A:$P,I$8,FALSE))) -> 1 | J41: =IF(VLOOKUP($A$7&$C41&"Totals",Data!$A:$P,I$8,FALSE)=0,"NR",(VLOOKUP($A$7&$C41&"Totals",Data!$A:$P,I$8,FALSE))) -> 1 | K41: =IF($Q41="NR","NR",(VLOOKUP($A$7&$C41&$A$11,Data!$A:$P,K$8,FALSE))) -> 0.75 | L41: =IF($Q41="NR","NR",(VLOOKUP($A$7&$C41&$A$11,Data!$A:$P,L$8,FALSE))) -> 0.22 | M41: =IF($Q41="NR","NR",(VLOOKUP($A$7&$C41&$A$11,Data!$A:$P,M$8,FALSE))) -> 0.02 | N41: =IF($Q41="NR","NR",(VLOOKUP($A$7&$C41&$A$11,Data!$A:$P,N$8,FALSE))) -> 0 | O41: =IF($Q41="NR","NR",(VLOOKUP($A$7&$C41&$A$11,Data!$A:$P,O$8,FALSE))) -> 0 | P41: =IF($Q41="NR","NR",(VLOOKUP($A$7&$C41&$A$11,Data!$A:$P,P$8,FALSE))) -> 1 | Q41: =IF(VLOOKUP($A$7&$C41&"Totals",Data!$A:$P,P$8,FALSE)=0,"NR",(VLOOKUP($A$7&$C41&"Totals",Data!$A:$P,P$8,FALSE))) -> 1
C42: West Lothian | D42: =IF($J42="NR","NR",(VLOOKUP($A$7&$C42&$A$11,Data!$A:$P,D$8,FALSE))) -> 0.31 | E42: =IF($J42="NR","NR",(VLOOKUP($A$7&$C42&$A$11,Data!$A:$P,E$8,FALSE))) -> 0.51 | F42: =IF($J42="NR","NR",(VLOOKUP($A$7&$C42&$A$11,Data!$A:$P,F$8,FALSE))) -> 0.1 | G42: =IF($J42="NR","NR",(VLOOKUP($A$7&$C42&$A$11,Data!$A:$P,G$8,FALSE))) -> 0.02 | H42: =IF($J42="NR","NR",(VLOOKUP($A$7&$C42&$A$11,Data!$A:$P,H$8,FALSE))) -> 0.05 | I42: =IF($J42="NR","NR",(VLOOKUP($A$7&$C42&$A$11,Data!$A:$P,I$8,FALSE))) -> 1 | J42: =IF(VLOOKUP($A$7&$C42&"Totals",Data!$A:$P,I$8,FALSE)=0,"NR",(VLOOKUP($A$7&$C42&"Totals",Data!$A:$P,I$8,FALSE))) -> 1 | K42: =IF($Q42="NR","NR",(VLOOKUP($A$7&$C42&$A$11,Data!$A:$P,K$8,FALSE))) -> 0.05 | L42: =IF($Q42="NR","NR",(VLOOKUP($A$7&$C42&$A$11,Data!$A:$P,L$8,FALSE))) -> 0.13 | M42: =IF($Q42="NR","NR",(VLOOKUP($A$7&$C42&$A$11,Data!$A:$P,M$8,FALSE))) -> 0.31 | N42: =IF($Q42="NR","NR",(VLOOKUP($A$7&$C42&$A$11,Data!$A:$P,N$8,FALSE))) -> 0.14 | O42: =IF($Q42="NR","NR",(VLOOKUP($A$7&$C42&$A$11,Data!$A:$P,O$8,FALSE))) -> 0.37 | P42: =IF($Q42="NR","NR",(VLOOKUP($A$7&$C42&$A$11,Data!$A:$P,P$8,FALSE))) -> 1 | Q42: =IF(VLOOKUP($A$7&$C42&"Totals",Data!$A:$P,P$8,FALSE)=0,"NR",(VLOOKUP($A$7&$C42&"Totals",Data!$A:$P,P$8,FALSE))) -> 1
C43: SCOTLAND | D43: =VLOOKUP($A$7&"SCOTLAND TOTALS"&$A$11,Data!$A:$P,D$8,FALSE) -> 0.26 | E43: =VLOOKUP($A$7&"SCOTLAND TOTALS"&$A$11,Data!$A:$P,E$8,FALSE) -> 0.3 | F43: =VLOOKUP($A$7&"SCOTLAND TOTALS"&$A$11,Data!$A:$P,F$8,FALSE) -> 0.13 | G43: =VLOOKUP($A$7&"SCOTLAND TOTALS"&$A$11,Data!$A:$P,G$8,FALSE) -> 0.08 | H43: =VLOOKUP($A$7&"SCOTLAND TOTALS"&$A$11,Data!$A:$P,H$8,FALSE) -> 0.22 | I43: =VLOOKUP($A$7&"SCOTLAND TOTALS"&$A$11,Data!$A:$P,I$8,FALSE) -> 1 | K43: =VLOOKUP($A$7&"SCOTLAND TOTALS"&$A$11,Data!$A:$P,K$8,FALSE) -> 0.13 | L43: =VLOOKUP($A$7&"SCOTLAND TOTALS"&$A$11,Data!$A:$P,L$8,FALSE) -> 0.62 | M43: =VLOOKUP($A$7&"SCOTLAND TOTALS"&$A$11,Data!$A:$P,M$8,FALSE) -> 0.11 | N43: =VLOOKUP($A$7&"SCOTLAND TOTALS"&$A$11,Data!$A:$P,N$8,FALSE) -> 0.05 | O43: =VLOOKUP($A$7&"SCOTLAND TOTALS"&$A$11,Data!$A:$P,O$8,FALSE) -> 0.09 | P43: =VLOOKUP($A$7&"SCOTLAND TOTALS"&$A$11,Data!$A:$P,P$8,FALSE) -> 1
C44: Source: Scottish Government Quarterly Monitoring Return
C45: Percentages have been rounded to the nearest whole per cent.
C46: NR - No figures returned for quarter

Sheet TableD - Time interval (EC)
B1: ="Table D - Time intervals recorded for clients in " &A2& " between first contact and completion of assessment and between completion of assessment and service delivery. Quarter - "&A9 -> Table D - Time intervals recorded for clients in Scotland between first contact and completion of assessment and between completion of assessment and service delivery. Quarter - January to March 2018
A2: =OFFSET(LKPS!H2,A3,0) -> Scotland
A3: 33 | C3: Select Quarter | F3: Select area
A4: =IF(A3=33,"SCOTLAND TOTALS",(OFFSET(LKPS!H2,A3,0))) -> SCOTLAND TOTALS
D5: 5 | E5: 6 | F5: 7 | G5: 8 | H5: 9 | I5: 10 | K5: 11 | L5: 12 | M5: 13 | N5: 14 | O5: 15 | P5: 16
A6: 7 | D6: Time interval between first contact and completion of assessment | K6: Time interval between completion of assessment and service delivery
A7: =OFFSET(LKPS!D2,A6,0) -> JantoMar18 | C7: Eligibility Category | D7: Less than or equal to 2 days | E7: More than 2 days and <= 2 weeks | F7: More than 2 weeks and <= 4 weeks | G7: More than 4 weeks and <= 6 weeks | H7: More than 6 weeks | I7: Total | K7: Before care assessment completed | L7: Less than or equal to 2 weeks | M7: More than 2 weeks and <= 4 weeks | N7: More than 4 weeks and <= 6 weeks | O7: More than 6 weeks | P7: Total
C8: Critical | D8: =VLOOKUP($A$7&$A$4&$C8,Data!$A:$P,D$5,FALSE) -> 0.3 | E8: =VLOOKUP($A$7&$A$4&$C8,Data!$A:$P,E$5,FALSE) -> 0.37 | F8: =VLOOKUP($A$7&$A$4&$C8,Data!$A:$P,F$5,FALSE) -> 0.13 | G8: =VLOOKUP($A$7&$A$4&$C8,Data!$A:$P,G$5,FALSE) -> 0.06 | H8: =VLOOKUP($A$7&$A$4&$C8,Data!$A:$P,H$5,FALSE) -> 0.13 | I8: =VLOOKUP($A$7&$A$4&$C8,Data!$A:$P,I$5,FALSE) -> 1 | K8: =IF($P$13="NR","NR",(VLOOKUP($A$7&$A$4&$C8,Data!$A:$P,K$5,FALSE))) -> 0.13 | L8: =IF($P$13="NR","NR",(VLOOKUP($A$7&$A$4&$C8,Data!$A:$P,L$5,FALSE))) -> 0.59 | M8: =IF($P$13="NR","NR",(VLOOKUP($A$7&$A$4&$C8,Data!$A:$P,M$5,FALSE))) -> 0.14 | N8: =IF($P$13="NR","NR",(VLOOKUP($A$7&$A$4&$C8,Data!$A:$P,N$5,FALSE))) -> 0.07 | O8: =IF($P$13="NR","NR",(VLOOKUP($A$7&$A$4&$C8,Data!$A:$P,O$5,FALSE))) -> 0.08 | P8: =IF($P$13="NR","NR",(VLOOKUP($A$7&$A$4&$C8,Data!$A:$P,P$5,FALSE))) -> 1
A9: =OFFSET(LKPS!B2,A6,0) -> January to March 2018 | C9: Substantial | D9: =VLOOKUP($A$7&$A$4&$C9,Data!$A:$P,D$5,FALSE) -> 0.22 | E9: =VLOOKUP($A$7&$A$4&$C9,Data!$A:$P,E$5,FALSE) -> 0.31 | F9: =VLOOKUP($A$7&$A$4&$C9,Data!$A:$P,F$5,FALSE) -> 0.14 | G9: =VLOOKUP($A$7&$A$4&$C9,Data!$A:$P,G$5,FALSE) -> 0.09 | H9: =VLOOKUP($A$7&$A$4&$C9,Data!$A:$P,H$5,FALSE) -> 0.24 | I9: =VLOOKUP($A$7&$A$4&$C9,Data!$A:$P,I$5,FALSE) -> 1 | K9: =IF($P$13="NR","NR",(VLOOKUP($A$7&$A$4&$C9,Data!$A:$P,K$5,FALSE))) -> 0.12 | L9: =IF($P$13="NR","NR",(VLOOKUP($A$7&$A$4&$C9,Data!$A:$P,L$5,FALSE))) -> 0.68 | M9: =IF($P$13="NR","NR",(VLOOKUP($A$7&$A$4&$C9,Data!$A:$P,M$5,FALSE))) -> 0.09 | N9: =IF($P$13="NR","NR",(VLOOKUP($A$7&$A$4&$C9,Data!$A:$P,N$5,FALSE))) -> 0.03 | O9: =IF($P$13="NR","NR",(VLOOKUP($A$7&$A$4&$C9,Data!$A:$P,O$5,FALSE))) -> 0.07 | P9: =IF($P$13="NR","NR",(VLOOKUP($A$7&$A$4&$C9,Data!$A:$P,P$5,FALSE))) -> 1
C10: Moderate | D10: =VLOOKUP($A$7&$A$4&$C10,Data!$A:$P,D$5,FALSE) -> 0.14 | E10: =VLOOKUP($A$7&$A$4&$C10,Data!$A:$P,E$5,FALSE) -> 0.2 | F10: =VLOOKUP($A$7&$A$4&$C10,Data!$A:$P,F$5,FALSE) -> 0.12 | G10: =VLOOKUP($A$7&$A$4&$C10,Data!$A:$P,G$5,FALSE) -> 0.1 | H10: =VLOOKUP($A$7&$A$4&$C10,Data!$A:$P,H$5,FALSE) -> 0.44 | I10: =VLOOKUP($A$7&$A$4&$C10,Data!$A:$P,I$5,FALSE) -> 1 | K10: =IF($P$13="NR","NR",(VLOOKUP($A$7&$A$4&$C10,Data!$A:$P,K$5,FALSE))) -> 0.22 | L10: =IF($P$13="NR","NR",(VLOOKUP($A$7&$A$4&$C10,Data!$A:$P,L$5,FALSE))) -> 0.55 | M10: =IF($P$13="NR","NR",(VLOOKUP($A$7&$A$4&$C10,Data!$A:$P,M$5,FALSE))) -> 0.14 | N10: =IF($P$13="NR","NR",(VLOOKUP($A$7&$A$4&$C10,Data!$A:$P,N$5,FALSE))) -> 0.03 | O10: =IF($P$13="NR","NR",(VLOOKUP($A$7&$A$4&$C10,Data!$A:$P,O$5,FALSE))) -> 0.07 | P10: =IF($P$13="NR","NR",(VLOOKUP($A$7&$A$4&$C10,Data!$A:$P,P$5,FALSE))) -> 1
A11: 2011 | C11: Low or No Risk | D11: =VLOOKUP($A$7&$A$4&$C11,Data!$A:$P,D$5,FALSE) -> 0.16 | E11: =VLOOKUP($A$7&$A$4&$C11,Data!$A:$P,E$5,FALSE) -> 0.21 | F11: =VLOOKUP($A$7&$A$4&$C11,Data!$A:$P,F$5,FALSE) -> 0.13 | G11: =VLOOKUP($A$7&$A$4&$C11,Data!$A:$P,G$5,FALSE) -> 0.07 | H11: =VLOOKUP($A$7&$A$4&$C11,Data!$A:$P,H$5,FALSE) -> 0.44 | I11: =VLOOKUP($A$7&$A$4&$C11,Data!$A:$P,I$5,FALSE) -> 1 | K11: =IF($P$13="NR","NR",(VLOOKUP($A$7&$A$4&$C11,Data!$A:$P,K$5,FALSE))) -> 0.25 | L11: =IF($P$13="NR","NR",(VLOOKUP($A$7&$A$4&$C11,Data!$A:$P,L$5,FALSE))) -> 0.58 | M11: =IF($P$13="NR","NR",(VLOOKUP($A$7&$A$4&$C11,Data!$A:$P,M$5,FALSE))) -> 0.08 | N11: =IF($P$13="NR","NR",(VLOOKUP($A$7&$A$4&$C11,Data!$A:$P,N$5,FALSE))) -> 0.02 | O11: =IF($P$13="NR","NR",(VLOOKUP($A$7&$A$4&$C11,Data!$A:$P,O$5,FALSE))) -> 0.07 | P11: =IF($P$13="NR","NR",(VLOOKUP($A$7&$A$4&$C11,Data!$A:$P,P$5,FALSE))) -> 1
C12: Not available | D12: =VLOOKUP($A$7&$A$4&$C12,Data!$A:$P,D$5,FALSE) -> 0.41 | E12: =VLOOKUP($A$7&$A$4&$C12,Data!$A:$P,E$5,FALSE) -> 0.22 | F12: =VLOOKUP($A$7&$A$4&$C12,Data!$A:$P,F$5,FALSE) -> 0.13 | G12: =VLOOKUP($A$7&$A$4&$C12,Data!$A:$P,G$5,FALSE) -> 0.07 | H12: =VLOOKUP($A$7&$A$4&$C12,Data!$A:$P,H$5,FALSE) -> 0.17 | I12: =VLOOKUP($A$7&$A$4&$C12,Data!$A:$P,I$5,FALSE) -> 1 | K12: =IF($P$13="NR","NR",(VLOOKUP($A$7&$A$4&$C12,Data!$A:$P,K$5,FALSE))) -> 0.11 | L12: =IF($P$13="NR","NR",(VLOOKUP($A$7&$A$4&$C12,Data!$A:$P,L$5,FALSE))) -> 0.57 | M12: =IF($P$13="NR","NR",(VLOOKUP($A$7&$A$4&$C12,Data!$A:$P,M$5,FALSE))) -> 0.11 | N12: =IF($P$13="NR","NR",(VLOOKUP($A$7&$A$4&$C12,Data!$A:$P,N$5,FALSE))) -> 0.05 | O12: =IF($P$13="NR","NR",(VLOOKUP($A$7&$A$4&$C12,Data!$A:$P,O$5,FALSE))) -> 0.15 | P12: =IF($P$13="NR","NR",(VLOOKUP($A$7&$A$4&$C12,Data!$A:$P,P$5,FALSE))) -> 1
C13: Total | D13: =VLOOKUP($A$7&$A$4&"Totals",Data!$A:$P,D$5,FALSE) -> 0.26 | E13: =VLOOKUP($A$7&$A$4&"Totals",Data!$A:$P,E$5,FALSE) -> 0.3 | F13: =VLOOKUP($A$7&$A$4&"Totals",Data!$A:$P,F$5,FALSE) -> 0.13 | G13: =VLOOKUP($A$7&$A$4&"Totals",Data!$A:$P,G$5,FALSE) -> 0.08 | H13: =VLOOKUP($A$7&$A$4&"Totals",Data!$A:$P,H$5,FALSE) -> 0.22 | I13: =VLOOKUP($A$7&$A$4&"Totals",Data!$A:$P,I$5,FALSE) -> 1 | K13: =IF($P$13="NR","NR",(VLOOKUP($A$7&$A$4&"Totals",Data!$A:$P,K$5,FALSE))) -> 0.13 | L13: =IF($P$13="NR","NR",(VLOOKUP($A$7&$A$4&"Totals",Data!$A:$P,L$5,FALSE))) -> 0.62 | M13: =IF($P$13="NR","NR",(VLOOKUP($A$7&$A$4&"Totals",Data!$A:$P,M$5,FALSE))) -> 0.11 | N13: =IF($P$13="NR","NR",(VLOOKUP($A$7&$A$4&"Totals",Data!$A:$P,N$5,FALSE))) -> 0.05 | O13: =IF($P$13="NR","NR",(VLOOKUP($A$7&$A$4&"Totals",Data!$A:$P,O$5,FALSE))) -> 0.09 | P13: =IF(VLOOKUP($A$7&$A$4&"Totals",Data!$A:$P,P$5,FALSE)=0,"NR",VLOOKUP($A$7&$A$4&"Totals",Data!$A:$P,P$5,FALSE)) -> 1
C14: Source: Scottish Government Quarterly Monitoring Return
C15: Percentages have been rounded to the nearest percentage point.
C16: NR - No figures returned for quarter

Sheet LKPS (hidden)
B3: January to March 2012 | C3: January to March2012 | D3: JantoMar12 | F3: Critical | H3: Aberdeen City
B4: January to March 2013 | C4: January to March2013 | D4: JantoMar13 | F4: Substantial | H4: Aberdeenshire
B5: January to March 2014 | C5: January to March2014 | D5: JantoMar14 | F5: Moderate | H5: Angus
B6: January to March 2015 | C6: January to March2015 | D6: JantoMar15 | F6: Low or No Risk | H6: Argyll & Bute
B7: January to March 2016 | C7: January to March2016 | D7: JantoMar16 | F7: Not available | H7: Clackmannanshire
B8: January to March 2017 | C8: January to March2017 | D8: JantoMar17 | F8: Totals | H8: Dumfries and Galloway
B9: January to March 2018 | C9: January to March2018 | D9: JantoMar18 | H9: Dundee City
H10: East Ayrshire
H11: East Dunbartonshire
H12: East Lothian
H13: East Renfrewshire
H14: Edinburgh, City of
H15: Eilean Siar
H16: Falkirk
H17: Fife
H18: Glasgow City
H19: Highland
H20: Inverclyde
H21: Midlothian
H22: Moray
H23: North Ayrshire
H24: North Lanarkshire
H25: Orkney Islands
H26: Perth & Kinross
H27: Renfrewshire
H28: Scottish Borders
H29: Shetland Islands
H30: South Ayrshire
H31: South Lanarkshire
H32: Stirling
H33: West Dunbartonshire
H34: West Lothian
H35: Scotland

Sheet Data (hidden)
A1: 1 | B1: 2 | C1: 3 | D1: 4 | E1: 5 | F1: 6 | G1: 7 | H1: 8 | I1: 9 | J1: 10 | K1: 11 | L1: 12 | M1: 13 | N1: 14 | O1: 15 | P1: 16
E2: Less than or equal to 2 days | F2: More than 2 days and <= 2 weeks | G2: More than 2 weeks and <= 4 weeks | H2: More than 4 weeks and <= 6 weeks | I2: More than 6 weeks | J2: Total | K2: Before care assessment completed | L2: Less than or equal to 2 weeks | M2: More than 2 weeks and <= 4 weeks | N2: More than 4 weeks and <= 6 weeks | O2: More than 6 weeks | P2: Total
A3: =D3&B3&C3 -> JantoMar11Aberdeen CityCritical | B3: Aberdeen City | C3: Critical | D3: JantoMar11 | E3: 0.63 | F3: 0.31 | G3: 0 | H3: 0 | I3: 0.06 | J3: 1 | K3: 0 | L3: 0.67 | M3: 0.13 | N3: 0.07 | O3: 0.13 | P3: 1
A4: =D4&B4&C4 -> JantoMar11Aberdeen CitySubstantial | B4: Aberdeen City | C4: Substantial | D4: JantoMar11 | E4: 0.19 | F4: 0.31 | G4: 0.38 | H4: 0 | I4: 0.13 | J4: 1 | K4: 0.08 | L4: 0.67 | M4: 0.08 | N4: 0 | O4: 0.17 | P4: 1
A5: JantoMar11Aberdeen CityModerate | B5: Aberdeen City | C5: Moderate | D5: JantoMar11 | E5: 0 | F5: 0 | G5: 0 | H5: 0 | I5: 0 | J5: 0 | K5: 0 | L5: 0 | M5: 0 | N5: 0 | O5: 0 | P5: 0
A6: JantoMar11Aberdeen CityLow or No Risk | B6: Aberdeen City | C6: Low or No Risk | D6: JantoMar11 | E6: 0 | F6: 0 | G6: 0 | H6: 0 | I6: 0 | J6: 0 | K6: 0 | L6: 0 | M6: 0 | N6: 0 | O6: 0 | P6: 0
A7: JantoMar11Aberdeen CityNot available | B7: Aberdeen City | C7: Not available | D7: JantoMar11 | E7: 0 | F7: 0 | G7: 0 | H7: 0 | I7: 0 | J7: 0 | K7: 0 | L7: 0 | M7: 0 | N7: 0 | O7: 0 | P7: 0
A8: JantoMar11Aberdeen CityTotals | B8: Aberdeen City | C8: Totals | D8: JantoMar11 | E8: 0.41 | F8: 0.31 | G8: 0.19 | H8: 0 | I8: 0.09 | J8: 1 | K8: 0.04 | L8: 0.67 | M8: 0.11 | N8: 0.04 | O8: 0.15 | P8: 1
A9: JantoMar11AberdeenshireCritical | B9: Aberdeenshire | C9: Critical | D9: JantoMar11 | E9: 0 | F9: 0 | G9: 0 | H9: 0 | I9: 0 | J9: 0 | K9: 0 | L9: 0 | M9: 0 | N9: 0 | O9: 0 | P9: 0
A10: JantoMar11AberdeenshireSubstantial | B10: Aberdeenshire | C10: Substantial | D10: JantoMar11 | E10: 0 | F10: 0 | G10: 0 | H10: 0 | I10: 0 | J10: 0 | K10: 0 | L10: 0 | M10: 0 | N10: 0 | O10: 0 | P10: 0
A11: JantoMar11AberdeenshireModerate | B11: Aberdeenshire | C11: Moderate | D11: JantoMar11 | E11: 0 | F11: 0 | G11: 0 | H11: 0 | I11: 0 | J11: 0 | K11: 0 | L11: 0 | M11: 0 | N11: 0 | O11: 0 | P11: 0
A12: JantoMar11AberdeenshireLow or No Risk | B12: Aberdeenshire | C12: Low or No Risk | D12: JantoMar11 | E12: 0 | F12: 0 | G12: 0 | H12: 0 | I12: 0 | J12: 0 | K12: 0 | L12: 0 | M12: 0 | N12: 0 | O12: 0 | P12: 0
A13: JantoMar11AberdeenshireNot available | B13: Aberdeenshire | C13: Not available | D13: JantoMar11 | E13: 0.1 | F13: 0.46 | G13: 0.22 | H13: 0.05 | I13: 0.17 | J13: 1 | K13: 0 | L13: 0 | M13: 0 | N13: 0 | O13: 0 | P13: 0
A14: JantoMar11AberdeenshireTotals | B14: Aberdeenshire | C14: Totals | D14: JantoMar11 | E14: 0.1 | F14: 0.46 | G14: 0.22 | H14: 0.05 | I14: 0.17 | J14: 1 | K14: 0 | L14: 0 | M14: 0 | N14: 0 | O14: 0 | P14: 0
A15: JantoMar11AngusCritical | B15: Angus | C15: Critical | D15: JantoMar11 | E15: 0.04 | F15: 0.09 | G15: 0.09 | H15: 0.17 | I15: 0.61 | J15: 1 | K15: 0.39 | L15: 0.28 | M15: 0.11 | N15: 0.17 | O15: 0.06 | P15: 1
A16: JantoMar11AngusSubstantial | B16: Angus | C16: Substantial | D16: JantoMar11 | E16: 0.48 | F16: 0.1 | G16: 0.14 | H16: 0.07 | I16: 0.21 | J16: 1 | K16: 0.18 | L16: 0.82 | M16: 0 | N16: 0 | O16: 0 | P16: 1
A17: JantoMar11AngusModerate | B17: Angus | C17: Moderate | D17: JantoMar11 | E17: 0.41 | F17: 0.02 | G17: 0.09 | H17: 0.11 | I17: 0.36 | J17: 1 | K17: 0.8 | L17: 0.2 | M17: 0 | N17: 0 | O17: 0 | P17: 1
A18: JantoMar11AngusLow or No Risk | B18: Angus | C18: Low or No Risk | D18: JantoMar11 | E18: 0.12 | F18: 0.12 | G18: 0.4 | H18: 0.08 | I18: 0.28 | J18: 1 | K18: 0.25 | L18: 0.75 | M18: 0 | N18: 0 | O18: 0 | P18: 1
A19: JantoMar11AngusNot available | B19: Angus | C19: Not available | D19: JantoMar11 | E19: 0 | F19: 0.25 | G19: 0.5 | H19: 0.25 | I19: 0 | J19: 1 | K19: 0 | L19: 0 | M19: 1 | N19: 0 | O19: 0 | P19: 1
A20: JantoMar11AngusTotals | B20: Angus | C20: Totals | D20: JantoMar11 | E20: 0.3 | F20: 0.08 | G20: 0.17 | H20: 0.11 | I20: 0.33 | J20: 1 | K20: 0.32 | L20: 0.54 | M20: 0.06 | N20: 0.06 | O20: 0.02 | P20: 1
A21: JantoMar11Argyll & ButeCritical | B21: Argyll & Bute | C21: Critical | D21: JantoMar11 | E21: 0.22 | F21: 0.37 | G21: 0.19 | H21: 0.06 | I21: 0.16 | J21: 1 | K21: 0.35 | L21: 0.41 | M21: 0.04 | N21: 0.04 | O21: 0.15 | P21: 1
A22: JantoMar11Argyll & ButeSubstantial | B22: Argyll & Bute | C22: Substantial | D22: JantoMar11 | E22: 0.24 | F22: 0.18 | G22: 0.2 | H22: 0.14 | I22: 0.25 | J22: 1 | K22: 0.34 | L22: 0.36 | M22: 0.11 | N22: 0.05 | O22: 0.14 | P22: 1
A23: JantoMar11Argyll & ButeModerate | B23: Argyll & Bute | C23: Moderate | D23: JantoMar11 | E23: 0.2 | F23: 0.2 | G23: 0.07 | H23: 0.2 | I23: 0.33 | J23: 1 | K23: 0 | L23: 0 | M23: 0 | N23: 0.33 | O23: 0.67 | P23: 1
A24: JantoMar11Argyll & ButeLow or No Risk | B24: Argyll & Bute | C24: Low or No Risk | D24: JantoMar11 | E24: 0.6 | F24: 0.2 | G24: 0 | H24: 0 | I24: 0.2 | J24: 1 | K24: 0.5 | L24: 0 | M24: 0 | N24: 0 | O24: 0.5 | P24: 1
A25: JantoMar11Argyll & ButeNot available | B25: Argyll & Bute | C25: Not available | D25: JantoMar11 | E25: 0 | F25: 0 | G25: 0 | H25: 0 | I25: 0 | J25: 0 | K25: 0.5 | L25: 0.5 | M25: 0 | N25: 0 | O25: 0 | P25: 1
A26: JantoMar11Argyll & ButeTotals | B26: Argyll & Bute | C26: Totals | D26: JantoMar11 | E26: 0.24 | F26: 0.24 | G26: 0.18 | H26: 0.12 | I26: 0.22 | J26: 1 | K26: 0.35 | L26: 0.37 | M26: 0.07 | N26: 0.05 | O26: 0.15 | P26: 1
A27: JantoMar11ClackmannanshireCritical | B27: Clackmannanshire | C27: Critical | D27: JantoMar11 | E27: 0 | F27: 0 | G27: 0 | H27: 0 | I27: 0 | J27: 0 | K27: 0 | L27: 0 | M27: 0 | N27: 0 | O27: 0 | P27: 0
A28: JantoMar11ClackmannanshireSubstantial | B28: Clackmannanshire | C28: Substantial | D28: JantoMar11 | E28: 0.05 | F28: 0.45 | G28: 0.23 | H28: 0.14 | I28: 0.14 | J28: 1 | K28: 0 | L28: 0 | M28: 0 | N28: 0 | O28: 0 | P28: 0
A29: JantoMar11ClackmannanshireModerate | B29: Clackmannanshire | C29: Moderate | D29: JantoMar11 | E29: 0.03 | F29: 0.2 | G29: 0.14 | H29: 0.11 | I29: 0.51 | J29: 1 | K29: 0 | L29: 0 | M29: 0 | N29: 0 | O29: 0 | P29: 0
A30: JantoMar11ClackmannanshireLow or No Risk | B30: Clackmannanshire | C30: Low or No Risk | D30: JantoMar11 | E30: 0 | F30: 0.1 | G30: 0.05 | H30: 0.13 | I30: 0.73 | J30: 1 | K30: 0 | L30: 0 | M30: 0 | N30: 0 | O30: 0 | P30: 0
A31: JantoMar11ClackmannanshireNot available | B31: Clackmannanshire | C31: Not available | D31: JantoMar11 | E31: 0 | F31: 0 | G31: 0 | H31: 0 | I31: 0 | J31: 0 | K31: 0.54 | L31: 0.42 | M31: 0.03 | N31: 0.01 | O31: 0 | P31: 1
A32: JantoMar11ClackmannanshireTotals | B32: Clackmannanshire | C32: Totals | D32: JantoMar11 | E32: 0.02 | F32: 0.22 | G32: 0.12 | H32: 0.12 | I32: 0.52 | J32: 1 | K32: 0.54 | L32: 0.42 | M32: 0.03 | N32: 0.01 | O32: 0 | P32: 1
A33: JantoMar11Dumfries and GallowayCritical | B33: Dumfries and Galloway | C33: Critical | D33: JantoMar11 | E33: 0 | F33: 0 | G33: 0 | H33: 0 | I33: 0 | J33: 0 | K33: 0 | L33: 0 | M33: 0 | N33: 0 | O33: 0 | P33: 0
A34: JantoMar11Dumfries and GallowaySubstantial | B34: Dumfries and Galloway | C34: Substantial | D34: JantoMar11 | E34: 0 | F34: 0 | G34: 0 | H34: 0 | I34: 0 | J34: 0 | K34: 0 | L34: 0 | M34: 0 | N34: 0 | O34: 0 | P34: 0
A35: JantoMar11Dumfries and GallowayModerate | B35: Dumfries and Galloway | C35: Moderate | D35: JantoMar11 | E35: 0 | F35: 0 | G35: 0 | H35: 0 | I35: 0 | J35: 0 | K35: 0 | L35: 0 | M35: 0 | N35: 0 | O35: 0 | P35: 0
A36: JantoMar11Dumfries and GallowayLow or No Risk | B36: Dumfries and Galloway | C36: Low or No Risk | D36: JantoMar11 | E36: 0 | F36: 0 | G36: 0 | H36: 0 | I36: 0 | J36: 0 | K36: 0 | L36: 0 | M36: 0 | N36: 0 | O36: 0 | P36: 0
A37: JantoMar11Dumfries and GallowayNot available | B37: Dumfries and Galloway | C37: Not available | D37: JantoMar11 | E37: 0.06 | F37: 0.24 | G37: 0.34 | H37: 0.11 | I37: 0.25 | J37: 1 | K37: 0 | L37: 0.64 | M37: 0.14 | N37: 0.08 | O37: 0.14 | P37: 1
A38: JantoMar11Dumfries and GallowayTotals | B38: Dumfries and Galloway | C38: Totals | D38: JantoMar11 | E38: 0.06 | F38: 0.24 | G38: 0.34 | H38: 0.11 | I38: 0.25 | J38: 1 | K38: 0 | L38: 0.64 | M38: 0.14 | N38: 0.08 | O38: 0.14 | P38: 1
A39: JantoMar11Dundee CityCritical | B39: Dundee City | C39: Critical | D39: JantoMar11 | E39: 0.23 | F39: 0.45 | G39: 0.15 | H39: 0.13 | I39: 0.05 | J39: 1 | K39: 0.22 | L39: 0.58 | M39: 0.05 | N39: 0.07 | O39: 0.07 | P39: 1
A40: JantoMar11Dundee CitySubstantial | B40: Dundee City | C40: Substantial | D40: JantoMar11 | E40: 0.06 | F40: 0.44 | G40: 0.22 | H40: 0.08 | I40: 0.19 | J40: 1 | K40: 0.17 | L40: 0.4 | M40: 0.19 | N40: 0.1 | O40: 0.14 | P40: 1
A41: JantoMar11Dundee CityModerate | B41: Dundee City | C41: Moderate | D41: JantoMar11 | E41: 0.09 | F41: 0.28 | G41: 0.15 | H41: 0.09 | I41: 0.38 | J41: 1 | K41: 0.39 | L41: 0.31 | M41: 0.19 | N41: 0.04 | O41: 0.07 | P41: 1
A42: JantoMar11Dundee CityLow or No Risk | B42: Dundee City | C42: Low or No Risk | D42: JantoMar11 | E42: 0.11 | F42: 0.23 | G42: 0.2 | H42: 0.14 | I42: 0.33 | J42: 1 | K42: 0.24 | L42: 0.41 | M42: 0.18 | N42: 0 | O42: 0.18 | P42: 1
A43: JantoMar11Dundee CityNot available | B43: Dundee City | C43: Not available | D43: JantoMar11 | E43: 0.15 | F43: 0.23 | G43: 0.31 | H43: 0 | I43: 0.31 | J43: 1 | K43: 0.23 | L43: 0.45 | M43: 0.14 | N43: 0.09 | O43: 0.09 | P43: 1
A44: JantoMar11Dundee CityTotals | B44: Dundee City | C44: Totals | D44: JantoMar11 | E44: 0.11 | F44: 0.32 | G44: 0.18 | H44: 0.1 | I44: 0.29 | J44: 1 | K44: 0.26 | L44: 0.41 | M44: 0.16 | N44: 0.07 | O44: 0.1 | P44: 1
A45: JantoMar11East AyrshireCritical | B45: East Ayrshire | C45: Critical | D45: JantoMar11 | E45: 0.49 | F45: 0.27 | G45: 0.22 | H45: 0 | I45: 0.02 | J45: 1 | K45: 0.48 | L45: 0.28 | M45: 0.21 | N45: 0.03 | O45: 0 | P45: 1
A46: JantoMar11East AyrshireSubstantial | B46: East Ayrshire | C46: Substantial | D46: JantoMar11 | E46: 0.63 | F46: 0.29 | G46: 0.04 | H46: 0 | I46: 0.04 | J46: 1 | K46: 0.64 | L46: 0.21 | M46: 0.14 | N46: 0 | O46: 0 | P46: 1
A47: JantoMar11East AyrshireModerate | B47: East Ayrshire | C47: Moderate | D47: JantoMar11 | E47: 0.63 | F47: 0.23 | G47: 0.05 | H47: 0.05 | I47: 0.05 | J47: 1 | K47: 0.59 | L47: 0.29 | M47: 0.12 | N47: 0 | O47: 0 | P47: 1
A48: JantoMar11East AyrshireLow or No Risk | B48: East Ayrshire | C48: Low or No Risk | D48: JantoMar11 | E48: 0 | F48: 0 | G48: 0 | H48: 0 | I48: 0 | J48: 0 | K48: 0 | L48: 0 | M48: 0 | N48: 0 | O48: 0 | P48: 0
A49: JantoMar11East AyrshireNot available | B49: East Ayrshire | C49: Not available | D49: JantoMar11 | E49: 0.74 | F49: 0.26 | G49: 0 | H49: 0 | I49: 0 | J49: 1 | K49: 0.53 | L49: 0.32 | M49: 0.05 | N49: 0.05 | O49: 0.05 | P49: 1
A50: JantoMar11East AyrshireTotals | B50: East Ayrshire | C50: Totals | D50: JantoMar11 | E50: 0.59 | F50: 0.26 | G50: 0.1 | H50: 0.02 | I50: 0.03 | J50: 1 | K50: 0.54 | L50: 0.28 | M50: 0.14 | N50: 0.03 | O50: 0.01 | P50: 1
A51: JantoMar11East DunbartonshireCritical | B51: East Dunbartonshire | C51: Critical | D51: JantoMar11 | E51: 0.33 | F51: 0.17 | G51: 0.17 | H51: 0.17 | I51: 0.17 | J51: 1 | K51: 0 | L51: 1 | M51: 0 | N51: 0 | O51: 0 | P51: 1
A52: JantoMar11East DunbartonshireSubstantial | B52: East Dunbartonshire | C52: Substantial | D52: JantoMar11 | E52: 0.58 | F52: 0.21 | G52: 0.09 | H52: 0.05 | I52: 0.07 | J52: 1 | K52: 0 | L52: 0.98 | M52: 0.01 | N52: 0.01 | O52: 0.01 | P52: 1
A53: JantoMar11East DunbartonshireModerate | B53: East Dunbartonshire | C53: Moderate | D53: JantoMar11 | E53: 0.19 | F53: 0.2 | G53: 0.13 | H53: 0.03 | I53: 0.45 | J53: 1 | K53: 0 | L53: 0.89 | M53: 0.06 | N53: 0.06 | O53: 0 | P53: 1
A54: JantoMar11East DunbartonshireLow or No Risk | B54: East Dunbartonshire | C54: Low or No Risk | D54: JantoMar11 | E54: 0.09 | F54: 0.19 | G54: 0.09 | H54: 0.03 | I54: 0.59 | J54: 1 | K54: 0 | L54: 1 | M54: 0 | N54: 0 | O54: 0 | P54: 1
A55: JantoMar11East DunbartonshireNot available | B55: East Dunbartonshire | C55: Not available | D55: JantoMar11 | E55: 0.33 | F55: 0.33 | G55: 0.11 | H55: 0 | I55: 0.22 | J55: 1 | K55: 0 | L55: 0.75 | M55: 0.25 | N55: 0 | O55: 0 | P55: 1
A56: JantoMar11East DunbartonshireTotals | B56: East Dunbartonshire | C56: Totals | D56: JantoMar11 | E56: 0.44 | F56: 0.21 | G56: 0.1 | H56: 0.04 | I56: 0.2 | J56: 1 | K56: 0 | L56: 0.97 | M56: 0.02 | N56: 0.01 | O56: 0 | P56: 1
A57: JantoMar11East LothianCritical | B57: East Lothian | C57: Critical | D57: JantoMar11 | E57: 0.33 | F57: 0.2 | G57: 0.19 | H57: 0.11 | I57: 0.17 | J57: 1 | K57: 0.41 | L57: 0.46 | M57: 0.08 | N57: 0.03 | O57: 0.02 | P57: 1
A58: JantoMar11East LothianSubstantial | B58: East Lothian | C58: Substantial | D58: JantoMar11 | E58: 0.35 | F58: 0.17 | G58: 0.22 | H58: 0.13 | I58: 0.13 | J58: 1 | K58: 0 | L58: 0 | M58: 0 | N58: 0 | O58: 0 | P58: 0
A59: JantoMar11East LothianModerate | B59: East Lothian | C59: Moderate | D59: JantoMar11 | E59: 0 | F59: 0 | G59: 0 | H59: 0 | I59: 0 | J59: 0 | K59: 0 | L59: 0 | M59: 0 | N59: 0 | O59: 0 | P59: 0
A60: JantoMar11East LothianLow or No Risk | B60: East Lothian | C60: Low or No Risk | D60: JantoMar11 | E60: 0 | F60: 0 | G60: 0 | H60: 0 | I60: 0 | J60: 0 | K60: 0 | L60: 0 | M60: 0 | N60: 0 | O60: 0 | P60: 0
A61: JantoMar11East LothianNot available | B61: East Lothian | C61: Not available | D61: JantoMar11 | E61: 0 | F61: 0 | G61: 0 | H61: 0 | I61: 0 | J61: 0 | K61: 0 | L61: 0 | M61: 0 | N61: 0 | O61: 0 | P61: 0
A62: JantoMar11East LothianTotals | B62: East Lothian | C62: Totals | D62: JantoMar11 | E62: 0.33 | F62: 0.2 | G62: 0.19 | H62: 0.11 | I62: 0.16 | J62: 1 | K62: 0.41 | L62: 0.46 | M62: 0.08 | N62: 0.03 | O62: 0.02 | P62: 1
A63: JantoMar11East RenfrewshireCritical | B63: East Renfrewshire | C63: Critical | D63: JantoMar11 | E63: 0.11 | F63: 0.18 | G63: 0.48 | H63: 0.11 | I63: 0.12 | J63: 1 | K63: 0.01 | L63: 0.84 | M63: 0.1 | N63: 0.05 | O63: 0 | P63: 1
A64: JantoMar11East RenfrewshireSubstantial | B64: East Renfrewshire | C64: Substantial | D64: JantoMar11 | E64: 0.02 | F64: 0.13 | G64: 0.65 | H64: 0.04 | I64: 0.16 | J64: 1 | K64: 0.05 | L64: 0.95 | M64: 0 | N64: 0 | O64: 0 | P64: 1
A65: JantoMar11East RenfrewshireModerate | B65: East Renfrewshire | C65: Moderate | D65: JantoMar11 | E65: 0.1 | F65: 0.2 | G65: 0.6 | H65: 0 | I65: 0.1 | J65: 1 | K65: 0 | L65: 0.93 | M65: 0.04 | N65: 0.04 | O65: 0 | P65: 1
A66: JantoMar11East RenfrewshireLow or No Risk | B66: East Renfrewshire | C66: Low or No Risk | D66: JantoMar11 | E66: 0 | F66: 0 | G66: 0 | H66: 0 | I66: 0 | J66: 0 | K66: 0 | L66: 0 | M66: 0 | N66: 0 | O66: 0 | P66: 0
A67: JantoMar11East RenfrewshireNot available | B67: East Renfrewshire | C67: Not available | D67: JantoMar11 | E67: 0.17 | F67: 0.11 | G67: 0.61 | H67: 0.06 | I67: 0.06 | J67: 1 | K67: 0 | L67: 0.78 | M67: 0.11 | N67: 0.11 | O67: 0 | P67: 1
A68: =D68&B68&C68 -> JantoMar11East RenfrewshireTotals | B68: East Renfrewshire | C68: Totals | D68: JantoMar11 | E68: 0.08 | F68: 0.16 | G68: 0.57 | H68: 0.07 | I68: 0.13 | J68: 1 | K68: 0.01 | L68: 0.87 | M68: 0.07 | N68: 0.05 | O68: 0 | P68: 1
A69: JantoMar11Edinburgh, City ofCritical | B69: Edinburgh, City of | C69: Critical | D69: JantoMar11 | E69: 0 | F69: 0 | G69: 0 | H69: 0 | I69: 0 | J69: 0 | K69: 0 | L69: 0 | M69: 0 | N69: 0 | O69: 0 | P69: 0
A70: JantoMar11Edinburgh, City ofSubstantial | B70: Edinburgh, City of | C70: Substantial | D70: JantoMar11 | E70: 0 | F70: 0 | G70: 0 | H70: 0 | I70: 0 | J70: 0 | K70: 0 | L70: 0 | M70: 0 | N70: 0 | O70: 0 | P70: 0
A71: JantoMar11Edinburgh, City ofModerate | B71: Edinburgh, City of | C71: Moderate | D71: JantoMar11 | E71: 0 | F71: 0 | G71: 0 | H71: 0 | I71: 0 | J71: 0 | K71: 0 | L71: 0 | M71: 0 | N71: 0 | O71: 0 | P71: 0
A72: JantoMar11Edinburgh, City ofLow or No Risk | B72: Edinburgh, City of | C72: Low or No Risk | D72: JantoMar11 | E72: 0 | F72: 0 | G72: 0 | H72: 0 | I72: 0 | J72: 0 | K72: 0 | L72: 0 | M72: 0 | N72: 0 | O72: 0 | P72: 0
A73: JantoMar11Edinburgh, City ofNot available | B73: Edinburgh, City of | C73: Not available | D73: JantoMar11 | E73: 0.14 | F73: 0.25 | G73: 0.29 | H73: 0.17 | I73: 0.16 | J73: 1 | K73: 0.12 | L73: 0.66 | M73: 0.12 | N73: 0.06 | O73: 0.05 | P73: 1
A74: JantoMar11Edinburgh, City ofTotals | B74: Edinburgh, City of | C74: Totals | D74: JantoMar11 | E74: 0.14 | F74: 0.25 | G74: 0.29 | H74: 0.17 | I74: 0.16 | J74: 1 | K74: 0.12 | L74: 0.66 | M74: 0.12 | N74: 0.06 | O74: 0.05 | P74: 1
A75: JantoMar11Eilean SiarCritical | B75: Eilean Siar | C75: Critical | D75: JantoMar11 | E75: 0 | F75: 0 | G75: 0 | H75: 0 | I75: 0 | J75: 0 | K75: 0 | L75: 0 | M75: 0 | N75: 0 | O75: 0 | P75: 0
A76: JantoMar11Eilean SiarSubstantial | B76: Eilean Siar | C76: Substantial | D76: JantoMar11 | E76: 0.33 | F76: 0.22 | G76: 0.33 | H76: 0 | I76: 0.11 | J76: 1 | K76: 0 | L76: 0.5 | M76: 0.33 | N76: 0 | O76: 0.17 | P76: 1
A77: JantoMar11Eilean SiarModerate | B77: Eilean Siar | C77: Moderate | D77: JantoMar11 | E77: 0.17 | F77: 0.5 | G77: 0 | H77: 0 | I77: 0.33 | J77: 1 | K77: 0 | L77: 1 | M77: 0 | N77: 0 | O77: 0 | P77: 1
A78: JantoMar11Eilean SiarLow or No Risk | B78: Eilean Siar | C78: Low or No Risk | D78: JantoMar11 | E78: 0 | F78: 0.5 | G78: 0.5 | H78: 0 | I78: 0 | J78: 1 | K78: 0.5 | L78: 0.5 | M78: 0 | N78: 0 | O78: 0 | P78: 1
A79: JantoMar11Eilean SiarNot available | B79: Eilean Siar | C79: Not available | D79: JantoMar11 | E79: 0.37 | F79: 0.37 | G79: 0.05 | H79: 0.05 | I79: 0.16 | J79: 1 | K79: 0.08 | L79: 0.58 | M79: 0.25 | N79: 0 | O79: 0.08 | P79: 1
A80: JantoMar11Eilean SiarTotals | B80: Eilean Siar | C80: Totals | D80: JantoMar11 | E80: 0.31 | F80: 0.36 | G80: 0.14 | H80: 0.03 | I80: 0.17 | J80: 1 | K80: 0.08 | L80: 0.65 | M80: 0.19 | N80: 0 | O80: 0.08 | P80: 1
A81: JantoMar11FalkirkCritical | B81: Falkirk | C81: Critical | D81: JantoMar11 | E81: 0 | F81: 0 | G81: 0 | H81: 0 | I81: 0 | J81: 0 | K81: 0 | L81: 0 | M81: 0 | N81: 0 | O81: 0 | P81: 0
A82: JantoMar11FalkirkSubstantial | B82: Falkirk | C82: Substantial | D82: JantoMar11 | E82: 0 | F82: 0 | G82: 0 | H82: 0 | I82: 0 | J82: 0 | K82: 0 | L82: 0 | M82: 0 | N82: 0 | O82: 0 | P82: 0
A83: JantoMar11FalkirkModerate | B83: Falkirk | C83: Moderate | D83: JantoMar11 | E83: 0 | F83: 0 | G83: 0 | H83: 0 | I83: 0 | J83: 0 | K83: 0 | L83: 0 | M83: 0 | N83: 0 | O83: 0 | P83: 0
A84: JantoMar11FalkirkLow or No Risk | B84: Falkirk | C84: Low or No Risk | D84: JantoMar11 | E84: 0 | F84: 0 | G84: 0 | H84: 0 | I84: 0 | J84: 0 | K84: 0 | L84: 0 | M84: 0 | N84: 0 | O84: 0 | P84: 0
A85: JantoMar11FalkirkNot available | B85: Falkirk | C85: Not available | D85: JantoMar11 | E85: 0 | F85: 0 | G85: 0 | H85: 0 | I85: 0 | J85: 0 | K85: 0 | L85: 0 | M85: 0 | N85: 0 | O85: 0 | P85: 0
A86: JantoMar11FalkirkTotals | B86: Falkirk | C86: Totals | D86: JantoMar11 | E86: 0 | F86: 0 | G86: 0 | H86: 0 | I86: 0 | J86: 0 | K86: 0 | L86: 0 | M86: 0 | N86: 0 | O86: 0 | P86: 0
A87: JantoMar11FifeCritical | B87: Fife | C87: Critical | D87: JantoMar11 | E87: 0.3 | F87: 0.42 | G87: 0.13 | H87: 0.09 | I87: 0.06 | J87: 1 | K87: 0.03 | L87: 0.62 | M87: 0.11 | N87: 0 | O87: 0.24 | P87: 1
A88: JantoMar11FifeSubstantial | B88: Fife | C88: Substantial | D88: JantoMar11 | E88: 0.08 | F88: 0.24 | G88: 0.23 | H88: 0.13 | I88: 0.33 | J88: 1 | K88: 0.04 | L88: 0.75 | M88: 0.12 | N88: 0.09 | O88: 0 | P88: 1
A89: JantoMar11FifeModerate | B89: Fife | C89: Moderate | D89: JantoMar11 | E89: 0.06 | F89: 0.22 | G89: 0.18 | H89: 0.1 | I89: 0.43 | J89: 1 | K89: 0 | L89: 0.5 | M89: 0.25 | N89: 0.25 | O89: 0 | P89: 1
A90: JantoMar11FifeLow or No Risk | B90: Fife | C90: Low or No Risk | D90: JantoMar11 | E90: 0 | F90: 0 | G90: 0.29 | H90: 0.71 | I90: 0 | J90: 1 | K90: 0 | L90: 0 | M90: 0 | N90: 0 | O90: 0 | P90: 0
A91: JantoMar11FifeNot available | B91: Fife | C91: Not available | D91: JantoMar11 | E91: 0.14 | F91: 0.28 | G91: 0.2 | H91: 0.14 | I91: 0.24 | J91: 1 | K91: 0.06 | L91: 0.44 | M91: 0.17 | N91: 0.11 | O91: 0.22 | P91: 1
A92: JantoMar11FifeTotals | B92: Fife | C92: Totals | D92: JantoMar11 | E92: 0.11 | F92: 0.26 | G92: 0.21 | H92: 0.13 | I92: 0.3 | J92: 1 | K92: 0.04 | L92: 0.69 | M92: 0.13 | N92: 0.08 | O92: 0.06 | P92: 1
A93: JantoMar11Glasgow CityCritical | B93: Glasgow City | C93: Critical | D93: JantoMar11 | E93: 0.04 | F93: 0.26 | G93: 0.19 | H93: 0.11 | I93: 0.41 | J93: 1 | K93: 0 | L93: 1 | M93: 0 | N93: 0 | O93: 0 | P93: 1
A94: JantoMar11Glasgow CitySubstantial | B94: Glasgow City | C94: Substantial | D94: JantoMar11 | E94: 0.07 | F94: 0.12 | G94: 0.11 | H94: 0.09 | I94: 0.62 | J94: 1 | K94: 0 | L94: 1 | M94: 0 | N94: 0 | O94: 0 | P94: 1
A95: JantoMar11Glasgow CityModerate | B95: Glasgow City | C95: Moderate | D95: JantoMar11 | E95: 0.12 | F95: 0.13 | G95: 0.07 | H95: 0.05 | I95: 0.62 | J95: 1 | K95: 0 | L95: 1 | M95: 0 | N95: 0 | O95: 0 | P95: 1
A96: JantoMar11Glasgow CityLow or No Risk | B96: Glasgow City | C96: Low or No Risk | D96: JantoMar11 | E96: 0.21 | F96: 0.1 | G96: 0.17 | H96: 0 | I96: 0.52 | J96: 1 | K96: 0 | L96: 1 | M96: 0 | N96: 0 | O96: 0 | P96: 1
A97: JantoMar11Glasgow CityNot available | B97: Glasgow City | C97: Not available | D97: JantoMar11 | E97: 0.23 | F97: 0.15 | G97: 0.15 | H97: 0.05 | I97: 0.42 | J97: 1 | K97: 0 | L97: 1 | M97: 0 | N97: 0 | O97: 0 | P97: 1
A98: JantoMar11Glasgow CityTotals | B98: Glasgow City | C98: Totals | D98: JantoMar11 | E98: 0.12 | F98: 0.14 | G98: 0.11 | H98: 0.07 | I98: 0.57 | J98: 1 | K98: 0 | L98: 1 | M98: 0 | N98: 0 | O98: 0 | P98: 1
A99: JantoMar11HighlandCritical | B99: Highland | C99: Critical | D99: JantoMar11 | E99: 0.06 | F99: 0.28 | G99: 0.29 | H99: 0.13 | I99: 0.24 | J99: 1 | K99: 0 | L99: 0 | M99: 0 | N99: 0 | O99: 0 | P99: 0
A100: JantoMar11HighlandSubstantial | B100: Highland | C100: Substantial | D100: JantoMar11 | E100: 0.09 | F100: 0.21 | G100: 0.15 | H100: 0.11 | I100: 0.45 | J100: 1 | K100: 0 | L100: 0 | M100: 0 | N100: 0 | O100: 0 | P100: 0
A101: JantoMar11HighlandModerate | B101: Highland | C101: Moderate | D101: JantoMar11 | E101: 0.09 | F101: 0.17 | G101: 0.19 | H101: 0.1 | I101: 0.44 | J101: 1 | K101: 0 | L101: 0 | M101: 0 | N101: 0 | O101: 0 | P101: 0
A102: JantoMar11HighlandLow or No Risk | B102: Highland | C102: Low or No Risk | D102: JantoMar11 | E102: 0.06 | F102: 0.13 | G102: 0.44 | H102: 0.06 | I102: 0.31 | J102: 1 | K102: 0 | L102: 0 | M102: 0 | N102: 0 | O102: 0 | P102: 0
A103: JantoMar11HighlandNot available | B103: Highland | C103: Not available | D103: JantoMar11 | E103: 0.17 | F103: 0.2 | G103: 0.19 | H103: 0.12 | I103: 0.32 | J103: 1 | K103: 0 | L103: 0 | M103: 0 | N103: 0 | O103: 0 | P103: 0
A104: JantoMar11HighlandTotals | B104: Highland | C104: Totals | D104: JantoMar11 | E104: 0.09 | F104: 0.22 | G104: 0.22 | H104: 0.11 | I104: 0.37 | J104: 1 | K104: 0 | L104: 0 | M104: 0 | N104: 0 | O104: 0 | P104: 0
A105: JantoMar11InverclydeCritical | B105: Inverclyde | C105: Critical | D105: JantoMar11 | E105: 0 | F105: 0 | G105: 0 | H105: 0 | I105: 0 | J105: 0 | K105: 0 | L105: 0 | M105: 0 | N105: 0 | O105: 0 | P105: 0
A106: JantoMar11InverclydeSubstantial | B106: Inverclyde | C106: Substantial | D106: JantoMar11 | E106: 0 | F106: 0 | G106: 0 | H106: 0 | I106: 0 | J106: 0 | K106: 0 | L106: 0 | M106: 0 | N106: 0 | O106: 0 | P106: 0
A107: JantoMar11InverclydeModerate | B107: Inverclyde | C107: Moderate | D107: JantoMar11 | E107: 0 | F107: 0 | G107: 0 | H107: 0 | I107: 0 | J107: 0 | K107: 0 | L107: 0 | M107: 0 | N107: 0 | O107: 0 | P107: 0
A108: JantoMar11InverclydeLow or No Risk | B108: Inverclyde | C108: Low or No Risk | D108: JantoMar11 | E108: 0 | F108: 0 | G108: 0 | H108: 0 | I108: 0 | J108: 0 | K108: 0 | L108: 0 | M108: 0 | N108: 0 | O108: 0 | P108: 0
A109: JantoMar11InverclydeNot available | B109: Inverclyde | C109: Not available | D109: JantoMar11 | E109: 0 | F109: 0 | G109: 0 | H109: 0 | I109: 0 | J109: 0 | K109: 0 | L109: 0 | M109: 0 | N109: 0 | O109: 0 | P109: 0
A110: JantoMar11InverclydeTotals | B110: Inverclyde | C110: Totals | D110: JantoMar11 | E110: 0 | F110: 0 | G110: 0 | H110: 0 | I110: 0 | J110: 0 | K110: 0 | L110: 0 | M110: 0 | N110: 0 | O110: 0 | P110: 0
A111: JantoMar11MidlothianCritical | B111: Midlothian | C111: Critical | D111: JantoMar11 | E111: 0 | F111: 0 | G111: 0 | H111: 0 | I111: 0 | J111: 0 | K111: 0 | L111: 0 | M111: 0 | N111: 0 | O111: 0 | P111: 0
A112: JantoMar11MidlothianSubstantial | B112: Midlothian | C112: Substantial | D112: JantoMar11 | E112: 0 | F112: 0 | G112: 0 | H112: 0 | I112: 0 | J112: 0 | K112: 0 | L112: 0 | M112: 0 | N112: 0 | O112: 0 | P112: 0
A113: JantoMar11MidlothianModerate | B113: Midlothian | C113: Moderate | D113: JantoMar11 | E113: 0 | F113: 0 | G113: 0 | H113: 0 | I113: 0 | J113: 0 | K113: 0 | L113: 0 | M113: 0 | N113: 0 | O113: 0 | P113: 0
A114: JantoMar11MidlothianLow or No Risk | B114: Midlothian | C114: Low or No Risk | D114: JantoMar11 | E114: 0 | F114: 0 | G114: 0 | H114: 0 | I114: 0 | J114: 0 | K114: 0 | L114: 0 | M114: 0 | N114: 0 | O114: 0 | P114: 0
A115: JantoMar11MidlothianNot available | B115: Midlothian | C115: Not available | D115: JantoMar11 | E115: 0.01 | F115: 0.21 | G115: 0.28 | H115: 0.16 | I115: 0.34 | J115: 1 | K115: 0 | L115: 0 | M115: 0 | N115: 0 | O115: 0 | P115: 0
A116: JantoMar11MidlothianTotals | B116: Midlothian | C116: Totals | D116: JantoMar11 | E116: 0.01 | F116: 0.21 | G116: 0.28 | H116: 0.16 | I116: 0.34 | J116: 1 | K116: 0 | L116: 0 | M116: 0 | N116: 0 | O116: 0 | P116: 0
A117: JantoMar11MorayCritical | B117: Moray | C117: Critical | D117: JantoMar11 | E117: 0.11 | F117: 0.56 | G117: 0.33 | H117: 0 | I117: 0 | J117: 1 | K117: 0.12 | L117: 0.82 | M117: 0 | N117: 0.06 | O117: 0 | P117: 1
A118: JantoMar11MoraySubstantial | B118: Moray | C118: Substantial | D118: JantoMar11 | E118: 0.24 | F118: 0.48 | G118: 0.27 | H118: 0 | I118: 0 | J118: 1 | K118: 0.18 | L118: 0.71 | M118: 0.09 | N118: 0.02 | O118: 0 | P118: 1
A119: JantoMar11MorayModerate | B119: Moray | C119: Moderate | D119: JantoMar11 | E119: 0.67 | F119: 0.33 | G119: 0 | H119: 0 | I119: 0 | J119: 1 | K119: 0 | L119: 0.5 | M119: 0 | N119: 0.5 | O119: 0 | P119: 1
A120: JantoMar11MorayLow or No Risk | B120: Moray | C120: Low or No Risk | D120: JantoMar11 | E120: 0 | F120: 0 | G120: 0 | H120: 0 | I120: 0 | J120: 0 | K120: 0 | L120: 0 | M120: 0 | N120: 0 | O120: 0 | P120: 0
A121: JantoMar11MorayNot available | B121: Moray | C121: Not available | D121: JantoMar11 | E121: 0.22 | F121: 0.56 | G121: 0.19 | H121: 0 | I121: 0.04 | J121: 1 | K121: 0.13 | L121: 0.82 | M121: 0.05 | N121: 0 | O121: 0 | P121: 1
A122: JantoMar11MorayTotals | B122: Moray | C122: Totals | D122: JantoMar11 | E122: 0.24 | F122: 0.51 | G122: 0.24 | H122: 0 | I122: 0.01 | J122: 1 | K122: 0.15 | L122: 0.76 | M122: 0.06 | N122: 0.03 | O122: 0 | P122: 1
A123: JantoMar11North AyrshireCritical | B123: North Ayrshire | C123: Critical | D123: JantoMar11 | E123: 0.13 | F123: 0.17 | G123: 0.17 | H123: 0.04 | I123: 0.5 | J123: 1 | K123: 0.44 | L123: 0.56 | M123: 0 | N123: 0 | O123: 0 | P123: 1
A124: JantoMar11North AyrshireSubstantial | B124: North Ayrshire | C124: Substantial | D124: JantoMar11 | E124: 0.11 | F124: 0.23 | G124: 0.23 | H124: 0.14 | I124: 0.29 | J124: 1 | K124: 0.41 | L124: 0.52 | M124: 0.05 | N124: 0.02 | O124: 0 | P124: 1
A125: JantoMar11North AyrshireModerate | B125: North Ayrshire | C125: Moderate | D125: JantoMar11 | E125: 0.25 | F125: 0.08 | G125: 0.17 | H125: 0.25 | I125: 0.25 | J125: 1 | K125: 0.5 | L125: 0.33 | M125: 0.17 | N125: 0 | O125: 0 | P125: 1
A126: JantoMar11North AyrshireLow or No Risk | B126: North Ayrshire | C126: Low or No Risk | D126: JantoMar11 | E126: 0.11 | F126: 0.33 | G126: 0.11 | H126: 0 | I126: 0.44 | J126: 1 | K126: 0 | L126: 0 | M126: 0 | N126: 0 | O126: 0 | P126: 0
A127: JantoMar11North AyrshireNot available | B127: North Ayrshire | C127: Not available | D127: JantoMar11 | E127: 0 | F127: 0 | G127: 0.5 | H127: 0 | I127: 0.5 | J127: 1 | K127: 0 | L127: 0 | M127: 0 | N127: 0 | O127: 0 | P127: 0
A128: JantoMar11North AyrshireTotals | B128: North Ayrshire | C128: Totals | D128: JantoMar11 | E128: 0.13 | F128: 0.19 | G128: 0.2 | H128: 0.11 | I128: 0.37 | J128: 1 | K128: 0.43 | L128: 0.52 | M128: 0.04 | N128: 0.01 | O128: 0 | P128: 1
A129: JantoMar11North LanarkshireCritical | B129: North Lanarkshire | C129: Critical | D129: JantoMar11 | E129: 0.61 | F129: 0.22 | G129: 0.07 | H129: 0.03 | I129: 0.07 | J129: 1 | K129: 0.29 | L129: 0.63 | M129: 0.05 | N129: 0.02 | O129: 0.02 | P129: 1
A130: JantoMar11North LanarkshireSubstantial | B130: North Lanarkshire | C130: Substantial | D130: JantoMar11 | E130: 0.47 | F130: 0.3 | G130: 0.09 | H130: 0.05 | I130: 0.1 | J130: 1 | K130: 0.28 | L130: 0.59 | M130: 0.06 | N130: 0.04 | O130: 0.03 | P130: 1
A131: JantoMar11North LanarkshireModerate | B131: North Lanarkshire | C131: Moderate | D131: JantoMar11 | E131: 0.52 | F131: 0.27 | G131: 0.06 | H131: 0.03 | I131: 0.11 | J131: 1 | K131: 0.33 | L131: 0.61 | M131: 0.02 | N131: 0.04 | O131: 0 | P131: 1
A132: =D132&B132&C132 -> JantoMar11North LanarkshireLow or No Risk | B132: North Lanarkshire | C132: Low or No Risk | D132: JantoMar11 | E132: 0.57 | F132: 0.26 | G132: 0.05 | H132: 0.04 | I132: 0.07 | J132: 1 | K132: 0.35 | L132: 0.52 | M132: 0 | N132: 0.04 | O132: 0.09 | P132: 1
A133: JantoMar11North LanarkshireNot available | B133: North Lanarkshire | C133: Not available | D133: JantoMar11 | E133: 0.43 | F133: 0.14 | G133: 0.1 | H133: 0 | I133: 0.33 | J133: 1 | K133: 1 | L133: 0 | M133: 0 | N133: 0 | O133: 0 | P133: 1
A134: JantoMar11North LanarkshireTotals | B134: North Lanarkshire | C134: Totals | D134: JantoMar11 | E134: 0.55 | F134: 0.25 | G134: 0.07 | H134: 0.04 | I134: 0.09 | J134: 1 | K134: 0.3 | L134: 0.6 | M134: 0.04 | N134: 0.03 | O134: 0.02 | P134: 1
A135: JantoMar11Orkney islandsCritical | B135: Orkney islands | C135: Critical | D135: JantoMar11 | E135: 0 | F135: 0 | G135: 0 | H135: 0 | I135: 0 | J135: 0 | K135: 0 | L135: 0 | M135: 0 | N135: 0 | O135: 0 | P135: 0
A136: JantoMar11Orkney islandsSubstantial | B136: Orkney islands | C136: Substantial | D136: JantoMar11 | E136: 0 | F136: 0 | G136: 0 | H136: 0 | I136: 0 | J136: 0 | K136: 0 | L136: 0 | M136: 0 | N136: 0 | O136: 0 | P136: 0
A137: JantoMar11Orkney islandsModerate | B137: Orkney islands | C137: Moderate | D137: JantoMar11 | E137: 0 | F137: 0 | G137: 0 | H137: 0 | I137: 0 | J137: 0 | K137: 0 | L137: 0 | M137: 0 | N137: 0 | O137: 0 | P137: 0
A138: JantoMar11Orkney islandsLow or No Risk | B138: Orkney islands | C138: Low or No Risk | D138: JantoMar11 | E138: 0 | F138: 0 | G138: 0 | H138: 0 | I138: 0 | J138: 0 | K138: 0 | L138: 0 | M138: 0 | N138: 0 | O138: 0 | P138: 0
A139: JantoMar11Orkney islandsNot available | B139: Orkney islands | C139: Not available | D139: JantoMar11 | E139: 0 | F139: 0 | G139: 0 | H139: 0 | I139: 0 | J139: 0 | K139: 0 | L139: 0 | M139: 0 | N139: 0 | O139: 0 | P139: 0
A140: JantoMar11Orkney islandsTotals | B140: Orkney islands | C140: Totals | D140: JantoMar11 | E140: 0 | F140: 0 | G140: 0 | H140: 0 | I140: 0 | J140: 0 | K140: 0 | L140: 0 | M140: 0 | N140: 0 | O140: 0 | P140: 0
A141: JantoMar11Perth & KinrossCritical | B141: Perth & Kinross | C141: Critical | D141: JantoMar11 | E141: 0 | F141: 0 | G141: 0 | H141: 0 | I141: 0 | J141: 0 | K141: 0 | L141: 0.67 | M141: 0 | N141: 0 | O141: 0.33 | P141: 1
A142: JantoMar11Perth & KinrossSubstantial | B142: Perth & Kinross | C142: Substantial | D142: JantoMar11 | E142: 0.06 | F142: 0.32 | G142: 0.12 | H142: 0.09 | I142: 0.41 | J142: 1 | K142: 0 | L142: 0.67 | M142: 0 | N142: 0 | O142: 0.33 | P142: 1
A143: JantoMar11Perth & KinrossModerate | B143: Perth & Kinross | C143: Moderate | D143: JantoMar11 | E143: 0.15 | F143: 0.27 | G143: 0.21 | H143: 0.11 | I143: 0.26 | J143: 1 | K143: 0.1 | L143: 0.1 | M143: 0.1 | N143: 0.3 | O143: 0.4 | P143: 1
A144: JantoMar11Perth & KinrossLow or No Risk | B144: Perth & Kinross | C144: Low or No Risk | D144: JantoMar11 | E144: 0.12 | F144: 0.36 | G144: 0.08 | H144: 0.04 | I144: 0.4 | J144: 1 | K144: 0 | L144: 1 | M144: 0 | N144: 0 | O144: 0 | P144: 1
A145: JantoMar11Perth & KinrossNot available | B145: Perth & Kinross | C145: Not available | D145: JantoMar11 | E145: 0.62 | F145: 0 | G145: 0.12 | H145: 0.08 | I145: 0.19 | J145: 1 | K145: 0 | L145: 0 | M145: 0 | N145: 0 | O145: 1 | P145: 1
A146: JantoMar11Perth & KinrossTotals | B146: Perth & Kinross | C146: Totals | D146: JantoMar11 | E146: 0.2 | F146: 0.25 | G146: 0.16 | H146: 0.09 | I146: 0.3 | J146: 1 | K146: 0.04 | L146: 0.25 | M146: 0.04 | N146: 0.13 | O146: 0.54 | P146: 1
A147: JantoMar11RenfrewshireCritical | B147: Renfrewshire | C147: Critical | D147: JantoMar11 | E147: 0.82 | F147: 0 | G147: 0 | H147: 0.09 | I147: 0.09 | J147: 1 | K147: 0.74 | L147: 0.06 | M147: 0.1 | N147: 0.03 | O147: 0.06 | P147: 1
A148: JantoMar11RenfrewshireSubstantial | B148: Renfrewshire | C148: Substantial | D148: JantoMar11 | E148: 0.52 | F148: 0.04 | G148: 0.15 | H148: 0.07 | I148: 0.22 | J148: 1 | K148: 0.83 | L148: 0.03 | M148: 0.11 | N148: 0.03 | O148: 0 | P148: 1
A149: JantoMar11RenfrewshireModerate | B149: Renfrewshire | C149: Moderate | D149: JantoMar11 | E149: 0 | F149: 0.5 | G149: 0 | H149: 0 | I149: 0.5 | J149: 1 | K149: 1 | L149: 0 | M149: 0 | N149: 0 | O149: 0 | P149: 1
A150: JantoMar11RenfrewshireLow or No Risk | B150: Renfrewshire | C150: Low or No Risk | D150: JantoMar11 | E150: 1 | F150: 0 | G150: 0 | H150: 0 | I150: 0 | J150: 1 | K150: 0 | L150: 0 | M150: 0 | N150: 0 | O150: 1 | P150: 1
A151: JantoMar11RenfrewshireNot available | B151: Renfrewshire | C151: Not available | D151: JantoMar11 | E151: 0.31 | F151: 0.15 | G151: 0.1 | H151: 0.15 | I151: 0.3 | J151: 1 | K151: 0.54 | L151: 0.19 | M151: 0.14 | N151: 0.08 | O151: 0.05 | P151: 1
A152: JantoMar11RenfrewshireTotals | B152: Renfrewshire | C152: Totals | D152: JantoMar11 | E152: 0.35 | F152: 0.13 | G152: 0.1 | H152: 0.13 | I152: 0.28 | J152: 1 | K152: 0.7 | L152: 0.09 | M152: 0.11 | N152: 0.05 | O152: 0.05 | P152: 1
A153: JantoMar11Scottish BordersCritical | B153: Scottish Borders | C153: Critical | D153: JantoMar11 | E153: 0 | F153: 0 | G153: 0 | H153: 0 | I153: 0 | J153: 0 | K153: 0 | L153: 0 | M153: 0 | N153: 0 | O153: 0 | P153: 0
A154: JantoMar11Scottish BordersSubstantial | B154: Scottish Borders | C154: Substantial | D154: JantoMar11 | E154: 0 | F154: 0 | G154: 0 | H154: 0 | I154: 0 | J154: 0 | K154: 0 | L154: 0 | M154: 0 | N154: 0 | O154: 0 | P154: 0
A155: JantoMar11Scottish BordersModerate | B155: Scottish Borders | C155: Moderate | D155: JantoMar11 | E155: 0 | F155: 0 | G155: 0 | H155: 0 | I155: 0 | J155: 0 | K155: 0 | L155: 0 | M155: 0 | N155: 0 | O155: 0 | P155: 0
A156: JantoMar11Scottish BordersLow or No Risk | B156: Scottish Borders | C156: Low or No Risk | D156: JantoMar11 | E156: 0 | F156: 0 | G156: 0 | H156: 0 | I156: 0 | J156: 0 | K156: 0 | L156: 0 | M156: 0 | N156: 0 | O156: 0 | P156: 0
A157: JantoMar11Scottish BordersNot available | B157: Scottish Borders | C157: Not available | D157: JantoMar11 | E157: 0 | F157: 0 | G157: 0 | H157: 0 | I157: 0 | J157: 0 | K157: 0 | L157: 0 | M157: 0 | N157: 0 | O157: 0 | P157: 0
A158: JantoMar11Scottish BordersTotals | B158: Scottish Borders | C158: Totals | D158: JantoMar11 | E158: 0 | F158: 0 | G158: 0 | H158: 0 | I158: 0 | J158: 0 | K158: 0 | L158: 0 | M158: 0 | N158: 0 | O158: 0 | P158: 0
A159: JantoMar11Shetland islandsCritical | B159: Shetland islands | C159: Critical | D159: JantoMar11 | E159: 0.17 | F159: 0.42 | G159: 0.08 | H159: 0 | I159: 0.33 | J159: 1 | K159: 0 | L159: 0 | M159: 1 | N159: 0 | O159: 0 | P159: 1
A160: JantoMar11Shetland islandsSubstantial | B160: Shetland islands | C160: Substantial | D160: JantoMar11 | E160: 0.17 | F160: 0.42 | G160: 0 | H160: 0.17 | I160: 0.25 | J160: 1 | K160: 0.43 | L160: 0.57 | M160: 0 | N160: 0 | O160: 0 | P160: 1
A161: JantoMar11Shetland islandsModerate | B161: Shetland islands | C161: Moderate | D161: JantoMar11 | E161: 0.14 | F161: 0.14 | G161: 0.29 | H161: 0 | I161: 0.43 | J161: 1 | K161: 0 | L161: 0.5 | M161: 0.5 | N161: 0 | O161: 0 | P161: 1
A162: JantoMar11Shetland islandsLow or No Risk | B162: Shetland islands | C162: Low or No Risk | D162: JantoMar11 | E162: 0 | F162: 0 | G162: 0.75 | H162: 0 | I162: 0.25 | J162: 1 | K162: 0 | L162: 0 | M162: 0 | N162: 0 | O162: 0 | P162: 0
A163: JantoMar11Shetland islandsNot available | B163: Shetland islands | C163: Not available | D163: JantoMar11 | E163: 0.17 | F163: 0.4 | G163: 0.12 | H163: 0.09 | I163: 0.22 | J163: 1 | K163: 0.08 | L163: 0.72 | M163: 0.17 | N163: 0.03 | O163: 0 | P163: 1
A164: JantoMar11Shetland islandsTotals | B164: Shetland islands | C164: Totals | D164: JantoMar11 | E164: 0.16 | F164: 0.37 | G164: 0.14 | H164: 0.08 | I164: 0.25 | J164: 1 | K164: 0.13 | L164: 0.67 | M164: 0.17 | N164: 0.02 | O164: 0 | P164: 1
A165: JantoMar11South AyrshireCritical | B165: South Ayrshire | C165: Critical | D165: JantoMar11 | E165: 0 | F165: 0 | G165: 0 | H165: 0 | I165: 0 | J165: 0 | K165: 0 | L165: 0 | M165: 0 | N165: 0 | O165: 0 | P165: 0
A166: JantoMar11South AyrshireSubstantial | B166: South Ayrshire | C166: Substantial | D166: JantoMar11 | E166: 0 | F166: 0 | G166: 0 | H166: 0 | I166: 0 | J166: 0 | K166: 0 | L166: 0 | M166: 0 | N166: 0 | O166: 0 | P166: 0
A167: JantoMar11South AyrshireModerate | B167: South Ayrshire | C167: Moderate | D167: JantoMar11 | E167: 0 | F167: 0 | G167: 0 | H167: 0 | I167: 0 | J167: 0 | K167: 0 | L167: 0 | M167: 0 | N167: 0 | O167: 0 | P167: 0
A168: JantoMar11South AyrshireLow or No Risk | B168: South Ayrshire | C168: Low or No Risk | D168: JantoMar11 | E168: 0 | F168: 0 | G168: 0 | H168: 0 | I168: 0 | J168: 0 | K168: 0 | L168: 0 | M168: 0 | N168: 0 | O168: 0 | P168: 0
A169: JantoMar11South AyrshireNot available | B169: South Ayrshire | C169: Not available | D169: JantoMar11 | E169: 0 | F169: 0 | G169: 0 | H169: 0 | I169: 0 | J169: 0 | K169: 0 | L169: 0 | M169: 0 | N169: 0 | O169: 0 | P169: 0
A170: JantoMar11South AyrshireTotals | B170: South Ayrshire | C170: Totals | D170: JantoMar11 | E170: 0 | F170: 0 | G170: 0 | H170: 0 | I170: 0 | J170: 0 | K170: 0 | L170: 0 | M170: 0 | N170: 0 | O170: 0 | P170: 0
A171: JantoMar11South LanarkshireCritical | B171: South Lanarkshire | C171: Critical | D171: JantoMar11 | E171: 0 | F171: 0 | G171: 0 | H171: 0 | I171: 0 | J171: 0 | K171: 0 | L171: 0 | M171: 0 | N171: 0 | O171: 0 | P171: 0
A172: JantoMar11South LanarkshireSubstantial | B172: South Lanarkshire | C172: Substantial | D172: JantoMar11 | E172: 0 | F172: 0 | G172: 0 | H172: 0 | I172: 0 | J172: 0 | K172: 0 | L172: 0 | M172: 0 | N172: 0 | O172: 0 | P172: 0
A173: JantoMar11South LanarkshireModerate | B173: South Lanarkshire | C173: Moderate | D173: JantoMar11 | E173: 0 | F173: 0 | G173: 0 | H173: 0 | I173: 0 | J173: 0 | K173: 0 | L173: 0 | M173: 0 | N173: 0 | O173: 0 | P173: 0
A174: JantoMar11South LanarkshireLow or No Risk | B174: South Lanarkshire | C174: Low or No Risk | D174: JantoMar11 | E174: 0 | F174: 0 | G174: 0 | H174: 0 | I174: 0 | J174: 0 | K174: 0 | L174: 0 | M174: 0 | N174: 0 | O174: 0 | P174: 0
A175: JantoMar11South LanarkshireNot available | B175: South Lanarkshire | C175: Not available | D175: JantoMar11 | E175: 0 | F175: 0 | G175: 0 | H175: 0 | I175: 0 | J175: 0 | K175: 0 | L175: 0 | M175: 0 | N175: 0 | O175: 0 | P175: 0
A176: JantoMar11South LanarkshireTotals | B176: South Lanarkshire | C176: Totals | D176: JantoMar11 | E176: 0 | F176: 0 | G176: 0 | H176: 0 | I176: 0 | J176: 0 | K176: 0 | L176: 0 | M176: 0 | N176: 0 | O176: 0 | P176: 0
A177: JantoMar11StirlingCritical | B177: Stirling | C177: Critical | D177: JantoMar11 | E177: 0.78 | F177: 0.11 | G177: 0.04 | H177: 0 | I177: 0.07 | J177: 1 | K177: 0.04 | L177: 0.92 | M177: 0 | N177: 0 | O177: 0.04 | P177: 1
A178: JantoMar11StirlingSubstantial | B178: Stirling | C178: Substantial | D178: JantoMar11 | E178: 0.54 | F178: 0.16 | G178: 0.01 | H178: 0.08 | I178: 0.21 | J178: 1 | K178: 0.07 | L178: 0.2 | M178: 0.47 | N178: 0.2 | O178: 0.07 | P178: 1
A179: JantoMar11StirlingModerate | B179: Stirling | C179: Moderate | D179: JantoMar11 | E179: 0.12 | F179: 0.04 | G179: 0 | H179: 0.04 | I179: 0.81 | J179: 1 | K179: 1 | L179: 0 | M179: 0 | N179: 0 | O179: 0 | P179: 1
A180: JantoMar11StirlingLow or No Risk | B180: Stirling | C180: Low or No Risk | D180: JantoMar11 | E180: 0 | F180: 0 | G180: 0 | H180: 0 | I180: 0 | J180: 0 | K180: 0 | L180: 0 | M180: 0 | N180: 0 | O180: 0 | P180: 0
A181: JantoMar11StirlingNot available | B181: Stirling | C181: Not available | D181: JantoMar11 | E181: 0.31 | F181: 0.31 | G181: 0.12 | H181: 0 | I181: 0.26 | J181: 1 | K181: 0.06 | L181: 0.63 | M181: 0.13 | N181: 0.06 | O181: 0.13 | P181: 1
A182: JantoMar11StirlingTotals | B182: Stirling | C182: Totals | D182: JantoMar11 | E182: 0.49 | F182: 0.16 | G182: 0.04 | H182: 0.04 | I182: 0.27 | J182: 1 | K182: 0.09 | L182: 0.61 | M182: 0.16 | N182: 0.07 | O182: 0.07 | P182: 1
A183: JantoMar11West DunbartonshireCritical | B183: West Dunbartonshire | C183: Critical | D183: JantoMar11 | E183: 0.95 | F183: 0 | G183: 0.05 | H183: 0 | I183: 0 | J183: 1 | K183: 1 | L183: 0 | M183: 0 | N183: 0 | O183: 0 | P183: 1
A184: JantoMar11West DunbartonshireSubstantial | B184: West Dunbartonshire | C184: Substantial | D184: JantoMar11 | E184: 0.24 | F184: 0.63 | G184: 0.11 | H184: 0.01 | I184: 0.01 | J184: 1 | K184: 0 | L184: 1 | M184: 0 | N184: 0 | O184: 0 | P184: 1
A185: JantoMar11West DunbartonshireModerate | B185: West Dunbartonshire | C185: Moderate | D185: JantoMar11 | E185: 0 | F185: 0 | G185: 0.31 | H185: 0.5 | I185: 0.19 | J185: 1 | K185: 0 | L185: 0 | M185: 1 | N185: 0 | O185: 0 | P185: 1
A186: JantoMar11West DunbartonshireLow or No Risk | B186: West Dunbartonshire | C186: Low or No Risk | D186: JantoMar11 | E186: 0 | F186: 0 | G186: 0.05 | H186: 0.03 | I186: 0.92 | J186: 1 | K186: 0 | L186: 0 | M186: 1 | N186: 0 | O186: 0 | P186: 1
A187: JantoMar11West DunbartonshireNot available | B187: West Dunbartonshire | C187: Not available | D187: JantoMar11 | E187: 0 | F187: 0 | G187: 0 | H187: 0 | I187: 0 | J187: 0 | K187: 0 | L187: 0 | M187: 0 | N187: 0 | O187: 0 | P187: 0
A188: JantoMar11West DunbartonshireTotals | B188: West Dunbartonshire | C188: Totals | D188: JantoMar11 | E188: 0.24 | F188: 0.21 | G188: 0.12 | H188: 0.12 | I188: 0.3 | J188: 1 | K188: 0.74 | L188: 0.19 | M188: 0.07 | N188: 0 | O188: 0 | P188: 1
A189: JantoMar11West LothianCritical | B189: West Lothian | C189: Critical | D189: JantoMar11 | E189: 0.23 | F189: 0.21 | G189: 0.33 | H189: 0.05 | I189: 0.18 | J189: 1 | K189: 0.31 | L189: 0.5 | M189: 0.07 | N189: 0.1 | O189: 0.01 | P189: 1
A190: JantoMar11West LothianSubstantial | B190: West Lothian | C190: Substantial | D190: JantoMar11 | E190: 0.05 | F190: 0.23 | G190: 0.14 | H190: 0.17 | I190: 0.41 | J190: 1 | K190: 0.5 | L190: 0.28 | M190: 0.05 | N190: 0.03 | O190: 0.15 | P190: 1
A191: JantoMar11West LothianModerate | B191: West Lothian | C191: Moderate | D191: JantoMar11 | E191: 0.32 | F191: 0.06 | G191: 0.13 | H191: 0.1 | I191: 0.39 | J191: 1 | K191: 0.38 | L191: 0.44 | M191: 0.15 | N191: 0.03 | O191: 0 | P191: 1
A192: JantoMar11West LothianLow or No Risk | B192: West Lothian | C192: Low or No Risk | D192: JantoMar11 | E192: 0.43 | F192: 0.07 | G192: 0 | H192: 0.07 | I192: 0.43 | J192: 1 | K192: 0.22 | L192: 0.44 | M192: 0.11 | N192: 0 | O192: 0.22 | P192: 1
A193: JantoMar11West LothianNot available | B193: West Lothian | C193: Not available | D193: JantoMar11 | E193: 0.3 | F193: 0.05 | G193: 0.05 | H193: 0.3 | I193: 0.3 | J193: 1 | K193: 0 | L193: 0 | M193: 0 | N193: 0 | O193: 1 | P193: 1
A194: JantoMar11West LothianTotals | B194: West Lothian | C194: Totals | D194: JantoMar11 | E194: 0.2 | F194: 0.16 | G194: 0.16 | H194: 0.14 | I194: 0.34 | J194: 1 | K194: 0.37 | L194: 0.42 | M194: 0.08 | N194: 0.06 | O194: 0.07 | P194: 1
A195: JantoMar11SCOTLAND TOTALSCritical | B195: SCOTLAND TOTALS | C195: Critical | D195: JantoMar11 | E195: 0.35 | F195: 0.24 | G195: 0.18 | H195: 0.07 | I195: 0.16 | J195: 1 | K195: 0.33 | L195: 0.53 | M195: 0.07 | N195: 0.04 | O195: 0.04 | P195: 1
A196: =D196&B196&C196 -> JantoMar11SCOTLAND TOTALSSubstantial | B196: SCOTLAND TOTALS | C196: Substantial | D196: JantoMar11 | E196: 0.22 | F196: 0.23 | G196: 0.16 | H196: 0.09 | I196: 0.3 | J196: 1 | K196: 0.14 | L196: 0.73 | M196: 0.06 | N196: 0.03 | O196: 0.03 | P196: 1
A197: JantoMar11SCOTLAND TOTALSModerate | B197: SCOTLAND TOTALS | C197: Moderate | D197: JantoMar11 | E197: 0.19 | F197: 0.18 | G197: 0.13 | H197: 0.09 | I197: 0.4 | J197: 1 | K197: 0.17 | L197: 0.71 | M197: 0.07 | N197: 0.03 | O197: 0.02 | P197: 1
A198: JantoMar11SCOTLAND TOTALSLow or No Risk | B198: SCOTLAND TOTALS | C198: Low or No Risk | D198: JantoMar11 | E198: 0.23 | F198: 0.17 | G198: 0.13 | H198: 0.07 | I198: 0.4 | J198: 1 | K198: 0.22 | L198: 0.59 | M198: 0.06 | N198: 0.01 | O198: 0.11 | P198: 1
A199: JantoMar11SCOTLAND TOTALSNot available | B199: SCOTLAND TOTALS | C199: Not available | D199: JantoMar11 | E199: 0.16 | F199: 0.25 | G199: 0.24 | H199: 0.13 | I199: 0.21 | J199: 1 | K199: 0.12 | L199: 0.65 | M199: 0.11 | N199: 0.05 | O199: 0.07 | P199: 1
A200: JantoMar11SCOTLAND TOTALSTotals | B200: SCOTLAND TOTALS | C200: Totals | D200: JantoMar11 | E200: 0.21 | F200: 0.23 | G200: 0.19 | H200: 0.1 | I200: 0.27 | J200: 1 | K200: 0.18 | L200: 0.65 | M200: 0.08 | N200: 0.04 | O200: 0.05 | P200: 1
... 3168 more rows
